{"text_format":"1","workbook":"xlsx","n_sheets":6,"sheets":["Accueil","Calcul de l'aide - Caribou","Carte - Admissibilité - Caribou","Versions du fichier","Menus","Log"],"not_rendered":{"charts":0,"images":6,"macros":1,"external_links":0,"defined_names":51,"comments":1,"pivot_tables":0},"unopened":[],"bounds":{"document_bytes":16777216,"sheet_cells":100000,"rows_first":2000,"rows_last":500,"rows_between":2000,"halvings":0,"cell_chars":16384,"cell_head_chars":4096},"cells_cut":0,"cells_raw":0,"read":"whole","date_system":"1900"}

{"sheet":"Accueil","index":0,"n_rows":22,"n_cols":4,"rows_kept":22,"cut":false,"hidden":false,"merged":[[14,3,14,13],[21,3,21,13],[17,3,18,13]]}
[]
[]
[]
[]
[]
[]
[]
[]
[]
[]
[]
[]
[]
[]
[null,null,null,"Programme d’investissement en aménagement forestier (PIAF) - Volet II\nForêt publique\nAnnexe au rapport et au calcul de l'aide pour la récolte des bois découlant de l’application des modalités\nd’aménagement de l’habitat du caribou forestier et montagnard 2021-2022\n"]
[]
[]
[null,null,null,"L'activation du contenu de ce fichier est requise afin d'assurer l'exécution des macro-commandes qui sont\nnécessaires à son bon fonctionnement."]
[]
[]
[]
[null,null,null,"https://support.office.com/fr-fr/article/activer-ou-d%C3%A9sactiver-les-macros-dans-les-fichiers-office-12b036fd-d140-4e74-b45e-16fed1a7e5c6"]

{"sheet":"Calcul de l'aide - Caribou","index":1,"n_rows":133,"n_cols":101,"rows_kept":133,"cut":false,"hidden":true,"merged":[[9,0,9,4],[13,0,13,8],[10,6,10,8],[11,6,11,8],[11,0,11,4],[20,0,20,5],[19,0,19,5],[10,0,10,5],[12,0,12,5],[14,0,14,5],[15,0,15,5],[16,0,16,5],[18,0,18,5],[5,6,5,8],[6,6,6,8],[7,6,7,8],[8,6,8,8],[32,0,32,8],[29,0,29,5],[30,0,30,5],[31,0,31,5],[8,0,8,5],[27,0,27,5],[28,0,28,8],[5,0,5,5],[6,0,6,5],[17,0,17,8],[7,0,7,5],[22,0,22,5],[0,0,0,8],[1,0,1,8],[2,7,2,8],[2,0,2,6],[4,0,4,8],[3,0,3,5],[3,6,3,8],[54,0,54,5],[54,6,54,8],[63,0,64,5],[63,6,64,8],[65,0,65,5],[65,6,65,8],[55,0,55,8],[56,0,56,8],[57,0,57,8],[58,0,58,8],[59,0,61,5],[59,6,61,8],[62,0,62,5],[62,6,62,8],[48,0,50,5],[48,6,50,8],[51,0,51,5],[51,6,51,8],[52,0,53,5],[52,6,53,8],[47,0,47,8],[40,0,40,5],[40,6,40,8],[41,0,42,5],[41,6,42,8],[43,0,43,5],[43,6,43,8],[26,0,26,8],[21,0,21,5],[44,0,44,8],[45,0,45,8],[46,0,46,8],[33,0,33,8],[34,0,34,8],[35,0,35,8],[36,0,36,8],[37,0,39,5],[37,6,39,8],[24,0,24,5],[25,0,25,5],[23,0,23,8]]}
[]
["Programme d’investissement en aménagement forestier (PIAF) - Volet II\nForêt publique\nAnnexe au rapport et au calcul de l'aide pour la récolte des bois découlant de l’application des modalités\nd’aménagement de l’habitat du caribou forestier et montagnard\n2021-2022\n"]
[" *** Veuillez saisir les informations dans les cellules blanches (Planification et BGAD) et jaunes (Ministère) ***",null,null,null,null,null,null,"Version 2 : 2021-06-09"]
["Contexte d'utilisation",null,null,null,null,null,"Inscrire une valeur",null,null,null,null,null,null,null,null,null,null,null,null,null,null,null,null,null,null,null,null,null,null,null,null,null,null,null,null,null,null,null,null,null,null,null,null,null,null,null,null,null,null,null,null,null,null,null,null,null,null,null,null,null,null,null,null,null,null,null,null,null,null,null,null,null,null,null,null,null,null,null,null,null,null,null,null,null,null,null,null,null,null,null,null,null,null,null,null,null,null,null,null,"UAF","Zone"]
["Identification"]
["Unité d'aménagement (UA)",null,null,null,null,null,null,null,null,null,null,null,null,null,null,null,null,null,null,null,null,null,null,null,null,null,null,null,null,null,null,null,null,null,null,null,null,null,null,null,null,null,null,null,null,null,null,null,null,null,null,null,null,null,null,null,null,null,null,null,null,null,null,null,null,null,null,null,null,null,null,null,null,null,null,null,null,null,null,null,null,null,null,null,null,null,null,null,null,null,null,null,null,null,null,null,null,null,null,null,"NON"]
["Secteur d'intervention",null,null,null,null,null,null,null,null,null,null,null,null,null,null,null,null,null,null,null,null,null,null,null,null,null,null,null,null,null,null,null,null,null,null,null,null,null,null,null,null,null,null,null,null,null,null,null,null,null,null,null,null,null,null,null,null,null,null,null,null,null,null,null,null,null,null,null,null,null,null,null,null,null,null,null,null,null,null,null,null,null,null,null,null,null,null,null,null,null,null,null,null,null,null,null,null,"01151",151,0]
["Unité de compilation",null,null,null,null,null,null,null,null,null,null,null,null,null,null,null,null,null,null,null,null,null,null,null,null,null,null,null,null,null,null,null,null,null,null,null,null,null,null,null,null,null,null,null,null,null,null,null,null,null,null,null,null,null,null,null,null,null,null,null,null,null,null,null,null,null,null,null,null,null,null,null,null,null,null,null,null,null,null,null,null,null,null,null,null,null,null,null,null,null,null,null,null,null,null,null,null,"01152",152,0]
["Numéro de la prescription",null,null,null,null,null,null,null,null,null,null,null,null,null,null,null,null,null,null,null,null,null,null,null,null,null,null,null,null,null,null,null,null,null,null,null,null,null,null,null,null,null,null,null,null,null,null,null,null,null,null,null,null,null,null,null,null,null,null,null,null,null,null,null,null,null,null,null,null,null,null,null,null,null,null,null,null,null,null,null,null,null,null,null,null,null,null,null,null,null,null,null,null,null,null,null,null,"01251",153,0]
["Zone de tarification\nValeur requise pour déterminer l'admissibilité et établir le montant de l'aide",null,null,null,null,{"$f":"IFERROR(IF(ISNUMBER(VLOOKUP($I$10,Tableau_ZT_Facteur,2,FALSE)),\"Question\",\"Non_admissible\"),\"Question\")","v":"Non_admissible"},null,null,"Inscrire une valeur",null,null,null,null,null,null,null,null,null,null,null,null,null,null,null,null,null,null,null,null,null,null,null,null,null,null,null,null,null,null,null,null,null,null,null,null,null,null,null,null,null,null,null,null,null,null,null,null,null,null,null,null,null,null,null,null,null,null,null,null,null,null,null,null,null,null,null,null,null,null,null,null,null,null,null,null,null,null,null,null,null,null,null,null,null,null,null,null,"02661",185,80]
["Traitement (Code DICA)",null,null,null,null,null,"Inscrire une valeur"]
["Traitement (Code RATF)",null,null,null,null,{"$f":"IFERROR(VLOOKUP($G$11,Codes_DICA_INDIRECT,3,FALSE),\"RATF_Inscrire_une_valeur\")","v":"RATF_Inscrire_une_valeur"}]
["Inscrire les renseignements dans la colonne associée au contexte d'utilisation",null,null,null,null,null,"Planification","BGAD","Ministère"]
["Admissibilité",null,null,null,null,null,null,null,null,null,null,null,null,null,null,null,null,null,null,null,null,null,null,null,null,null,null,null,null,null,null,null,null,null,null,null,null,null,null,null,null,null,null,null,null,null,null,null,null,null,null,null,null,null,null,null,null,null,null,null,null,null,null,null,null,null,null,null,null,null,null,null,null,null,null,null,null,null,null,null,null,null,null,null,null,null,null,null,null,null,null,null,null,null,null,null,null,"01253",155,0]
["Peuplement résineux ou mixte ET surface terrière SEPM > 25% ?",null,null,null,null,null,null,null,null,null,null,null,null,null,null,null,null,null,null,null,null,null,null,null,null,null,null,null,null,null,null,null,null,null,null,null,null,null,null,null,null,null,null,null,null,null,null,null,null,null,null,null,null,null,null,null,null,null,null,null,null,null,null,null,null,null,null,null,null,null,null,null,null,null,null,null,null,null,null,null,null,null,null,null,null,null,null,null,null,null,null,null,null,null,null,null,null,"02251",157,0]
["Secteur d'intervention bénéficiant d'une autre aide du Programme d'investissement en aménagement forestier (PIAF) ?\nLe cas échéant, inscrire le montant à l'hectare ($/ha) à la ligne suivante"]
["Montant de l'aide déjà accordée ($/ha) en vertu du PIAF"]
["Intrants pour le calcul",null,null,null,null,null,null,null,null,null,null,null,null,null,null,null,null,null,null,null,null,null,null,null,null,null,null,null,null,null,null,null,null,null,null,null,null,null,null,null,null,null,null,null,null,null,null,null,null,null,null,null,null,null,null,null,null,null,null,null,null,null,null,null,null,null,null,null,null,null,null,null,null,null,null,null,null,null,null,null,null,null,null,null,null,null,null,null,null,null,null,null,null,null,null,null,null,"02452",182,0]
["Volume net pour le sciage SEPM (m3/ha)",null,null,null,null,null,null,null,null,null,null,null,null,null,null,null,null,null,null,null,null,null,null,null,null,null,null,null,null,null,null,null,null,null,null,null,null,null,null,null,null,null,null,null,null,null,null,null,null,null,null,null,null,null,null,null,null,null,null,null,null,null,null,null,null,null,null,null,null,null,null,null,null,null,null,null,null,null,null,null,null,null,null,null,null,null,null,null,null,null,null,null,null,null,null,null,null,"02651",184,200]
["Volume net pour la pâte SEPM (m3/ha)",null,null,null,null,null,null,null,null,null,null,null,null,null,null,null,null,null,null,null,null,null,null,null,null,null,null,null,null,null,null,null,null,null,null,null,null,null,null,null,null,null,null,null,null,null,null,null,null,null,null,null,null,null,null,null,null,null,null,null,null,null,null,null,null,null,null,null,null,null,null,null,null,null,null,null,null,null,null,null,null,null,null,null,null,null,null,null,null,null,null,null,null,null,null,null,null,"02651",184,200]
["Volume net pour les feuillus durs (m3/ha)\nInclure les résineux autres que SEPM",null,null,null,null,null,null,null,null,null,null,null,null,null,null,null,null,null,null,null,null,null,null,null,null,null,null,null,null,null,null,null,null,null,null,null,null,null,null,null,null,null,null,null,null,null,null,null,null,null,null,null,null,null,null,null,null,null,null,null,null,null,null,null,null,null,null,null,null,null,null,null,null,null,null,null,null,null,null,null,null,null,null,null,null,null,null,null,null,null,null,null,null,null,null,null,null,"02651",184,200]
["Volume net pour les peupliers (m3/ha)"]
["Volume net toutes essences (m3/ha)",null,null,null,null,null,{"$f":"IFERROR(SUM($G$19:$G$22),0)","v":0},{"$f":"IFERROR(IF(OR(EXACT(UPPER($G$4),UPPER(Menus!$A$195)),EXACT(UPPER($G$4),UPPER(Menus!$A$196))),SUM($H$19:$H$22),0),0)","v":0},{"$f":"IFERROR(IF(EXACT(UPPER($G$4),UPPER(Menus!$A$196)),SUM($I$19:$I$22),0),0)","v":0},null,null,null,null,null,null,null,null,null,null,null,null,null,null,null,null,null,null,null,null,null,null,null,null,null,null,null,null,null,null,null,null,null,null,null,null,null,null,null,null,null,null,null,null,null,null,null,null,null,null,null,null,null,null,null,null,null,null,null,null,null,null,null,null,null,null,null,null,null,null,null,null,null,null,null,null,null,null,null,null,null,null,null,null,null,null,null,null,"02651",184,200]
["Récolte",null,null,null,null,null,null,null,null,null,null,null,null,null,null,null,null,null,null,null,null,null,null,null,null,null,null,null,null,null,null,null,null,null,null,null,null,null,null,null,null,null,null,null,null,null,null,null,null,null,null,null,null,null,null,null,null,null,null,null,null,null,null,null,null,null,null,null,null,null,null,null,null,null,null,null,null,null,null,null,null,null,null,null,null,null,null,null,null,null,null,null,null,null,null,null,null,"01253",155,0]
["Est-ce que tout le volume des feuillus durs est récolté ?",null,null,null,null,null,null,null,null,null,null,null,null,null,null,null,null,null,null,null,null,null,null,null,null,null,null,null,null,null,null,null,null,null,null,null,null,null,null,null,null,null,null,null,null,null,null,null,null,null,null,null,null,null,null,null,null,null,null,null,null,null,null,null,null,null,null,null,null,null,null,null,null,null,null,null,null,null,null,null,null,null,null,null,null,null,null,null,null,null,null,null,null,null,null,null,null,"02351",158,0]
["Est-ce que tout le volume des peupliers est récolté ?",null,null,null,null,null,null,null,null,null,null,null,null,null,null,null,null,null,null,null,null,null,null,null,null,null,null,null,null,null,null,null,null,null,null,null,null,null,null,null,null,null,null,null,null,null,null,null,null,null,null,null,null,null,null,null,null,null,null,null,null,null,null,null,null,null,null,null,null,null,null,null,null,null,null,null,null,null,null,null,null,null,null,null,null,null,null,null,null,null,null,null,null,null,null,null,null,"02351",158,0]
["Superficie",null,null,null,null,null,null,null,null,null,null,null,null,null,null,null,null,null,null,null,null,null,null,null,null,null,null,null,null,null,null,null,null,null,null,null,null,null,null,null,null,null,null,null,null,null,null,null,null,null,null,null,null,null,null,null,null,null,null,null,null,null,null,null,null,null,null,null,null,null,null,null,null,null,null,null,null,null,null,null,null,null,null,null,null,null,null,null,null,null,null,null,null,null,null,null,null,"02452",182,0]
["Superficie (hectare)",null,null,null,null,null,null,null,null,null,null,null,null,null,null,null,null,null,null,null,null,null,null,null,null,null,null,null,null,null,null,null,null,null,null,null,null,null,null,null,null,null,null,null,null,null,null,null,null,null,null,null,null,null,null,null,null,null,null,null,null,null,null,null,null,null,null,null,null,null,null,null,null,null,null,null,null,null,null,null,null,null,null,null,null,null,null,null,null,null,null,null,null,null,null,null,null,"02451",181,80]
["Résumé de l'aide pour la récolte des bois découlant de l’application des modalités d’aménagement de l’habitat du caribou forestier et montagnard",null,null,null,null,null,null,null,null,null,null,null,null,null,null,null,null,null,null,null,null,null,null,null,null,null,null,null,null,null,null,null,null,null,null,null,null,null,null,null,null,null,null,null,null,null,null,null,null,null,null,null,null,null,null,null,null,null,null,null,null,null,null,null,null,null,null,null,null,null,null,null,null,null,null,null,null,null,null,null,null,null,null,null,null,null,null,null,null,null,null,null,null,null,null,null,null,"06452",257,280]
["Aide brute ($/ha) - incluant le montant PIAF déjà accordé, le cas échant ",null,null,null,null,null,{"$f":"IFERROR(IF(EXACT(UPPER($G$15),UPPER(Menus!$A$2))=FALSE,0,IF(AND(EXACT(UPPER($G$16),UPPER(Menus!$A$2)),ISNUMBER($G$17)=FALSE),\"Valider G17\",IF(AND(EXACT(UPPER($G$25),UPPER(Menus!$A$2)),EXACT(UPPER($G$26),UPPER(Menus!$A$2))),Menus!$B$159*VLOOKUP($I$10,Tableau_ZT_Facteur,2,FALSE)*Facteur_Aide,IF(AND(OR(EXACT(UPPER($G$25),UPPER(Menus!$A$3)),EXACT(UPPER($G$25),UPPER(Sans_objet))),EXACT(UPPER($G$26),UPPER(Menus!$A$2))),Menus!$B$160*VLOOKUP($I$10,Tableau_ZT_Facteur,2,FALSE)*Facteur_Aide,IF(AND(EXACT(UPPER($G$25),UPPER(Menus!$A$2)),OR(EXACT(UPPER($G$26),UPPER(Menus!$A$3)),EXACT(UPPER($G$26),UPPER(Sans_objet)))),Menus!$B$161*VLOOKUP($I$10,Tableau_ZT_Facteur,2,FALSE)*Facteur_Aide,IF(AND(OR(EXACT(UPPER($G$25),UPPER(Menus!$A$3)),EXACT(UPPER($G$25),UPPER(Sans_objet))),OR(EXACT(UPPER($G$26),UPPER(Menus!$A$3)),EXACT(UPPER($G$26),UPPER(Sans_objet)))),Menus!$B$162*VLOOKUP($I$10,Tableau_ZT_Facteur,2,FALSE)*Facteur_Aide,0)))))),0)","v":0},{"$f":"IFERROR(IF(EXACT(UPPER($H$15),UPPER(Menus!$A$2))=FALSE,0,IF(OR(EXACT(UPPER($G$4),UPPER(Menus!$A$195)),EXACT(UPPER($G$4),UPPER(Menus!$A$196))),IF(AND(EXACT(UPPER($H$16),UPPER(Menus!$A$2)),ISNUMBER($H$17)=FALSE),\"Valider H17\",IF(AND(EXACT(UPPER($H$25),UPPER(Menus!$A$2)),EXACT(UPPER($H$26),UPPER(Menus!$A$2))),Menus!$C$159*VLOOKUP($I$10,Tableau_ZT_Facteur,2,FALSE)*Facteur_Aide,IF(AND(OR(EXACT(UPPER($H$25),UPPER(Menus!$A$3)),EXACT(UPPER($H$25),UPPER(Sans_objet))),EXACT(UPPER($H$26),UPPER(Menus!$A$2))),Menus!$C$160*VLOOKUP($I$10,Tableau_ZT_Facteur,2,FALSE)*Facteur_Aide,IF(AND(EXACT(UPPER($H$25),UPPER(Menus!$A$2)),OR(EXACT(UPPER($H$26),UPPER(Menus!$A$3)),EXACT(UPPER($H$26),UPPER(Sans_objet)))),Menus!$C$161*VLOOKUP($I$10,Tableau_ZT_Facteur,2,FALSE)*Facteur_Aide,IF(AND(OR(EXACT(UPPER($H$25),UPPER(Menus!$A$3)),EXACT(UPPER($H$25),UPPER(Sans_objet))),OR(EXACT(UPPER($H$26),UPPER(Menus!$A$3)),EXACT(UPPER($H$26),UPPER(Sans_objet)))),Menus!$C$162*VLOOKUP($I$10,Tableau_ZT_Facteur,2,FALSE)*Facteur_Aide,0))))),0)),0)","v":0},{"$f":"IFERROR(IF(EXACT(UPPER($I$15),UPPER(Menus!$A$2))=FALSE,0,IF(EXACT(UPPER($G$4),UPPER(Menus!$A$196)),IF(AND(EXACT(UPPER($I$16),UPPER(Menus!$A$2)),ISNUMBER($I$17)=FALSE),\"Valider I17\",IF(AND(EXACT(UPPER($I$25),UPPER(Menus!$A$2)),EXACT(UPPER($I$26),UPPER(Menus!$A$2))),Menus!$D$159*VLOOKUP($I$10,Tableau_ZT_Facteur,2,FALSE)*Facteur_Aide,IF(AND(OR(EXACT(UPPER($I$25),UPPER(Menus!$A$3)),EXACT(UPPER($I$25),UPPER(Sans_objet))),EXACT(UPPER($I$26),UPPER(Menus!$A$2))),Menus!$D$160*VLOOKUP($I$10,Tableau_ZT_Facteur,2,FALSE)*Facteur_Aide,IF(AND(EXACT(UPPER($I$25),UPPER(Menus!$A$2)),OR(EXACT(UPPER($I$26),UPPER(Menus!$A$3)),EXACT(UPPER($I$26),UPPER(Sans_objet)))),Menus!$D$161*VLOOKUP($I$10,Tableau_ZT_Facteur,2,FALSE)*Facteur_Aide,IF(AND(OR(EXACT(UPPER($I$25),UPPER(Menus!$A$3)),EXACT(UPPER($I$25),UPPER(Sans_objet))),OR(EXACT(UPPER($I$26),UPPER(Menus!$A$3)),EXACT(UPPER($I$26),UPPER(Sans_objet)))),Menus!$D$162*VLOOKUP($I$10,Tableau_ZT_Facteur,2,FALSE)*Facteur_Aide,0))))),0)),0)","v":0},null,null,null,null,null,null,null,null,null,null,null,null,null,null,null,null,null,null,null,null,null,null,null,null,null,null,null,null,null,null,null,null,null,null,null,null,null,null,null,null,null,null,null,null,null,null,null,null,null,null,null,null,null,null,null,null,null,null,null,null,null,null,null,null,null,null,null,null,null,null,null,null,null,null,null,null,null,null,null,null,null,null,null,null,null,null,null,null,"07151",258,280]
["Aide finale ($/ha) - taux à inscrire à l'état d'avancement et au RATF",null,null,null,null,null,{"$f":"IFERROR(IF(AND(EXACT(UPPER($G$16),UPPER(Menus!$A$2)),ISNUMBER($G$17)=FALSE),\"Valider G17\",ROUND(IF(IF(EXACT(UPPER($G$15),UPPER(Menus!$A$2))=FALSE,0,IF(AND(EXACT(UPPER($G$16),UPPER(Menus!$A$2)),ISNUMBER($G$17)=FALSE),\"Voir G17\",IF(AND(EXACT(UPPER($G$25),UPPER(Menus!$A$2)),EXACT(UPPER($G$26),UPPER(Menus!$A$2))),(Menus!$B$159*VLOOKUP($I$10,Tableau_ZT_Facteur,2,FALSE)*Facteur_Aide)-SUM($G$17),IF(AND(OR(EXACT(UPPER($G$25),UPPER(Menus!$A$3)),EXACT(UPPER($G$25),UPPER(Sans_objet))),EXACT(UPPER($G$26),UPPER(Menus!$A$2))),(Menus!$B$160*VLOOKUP($I$10,Tableau_ZT_Facteur,2,FALSE)*Facteur_Aide)-SUM($G$17),IF(AND(EXACT(UPPER($G$25),UPPER(Menus!$A$2)),OR(EXACT(UPPER($G$26),UPPER(Menus!$A$3)),EXACT(UPPER($G$26),UPPER(Sans_objet)))),(Menus!$B$161*VLOOKUP($I$10,Tableau_ZT_Facteur,2,FALSE)*Facteur_Aide)-SUM($G$17),IF(AND(OR(EXACT(UPPER($G$25),UPPER(Menus!$A$3)),EXACT(UPPER($G$25),UPPER(Sans_objet))),OR(EXACT(UPPER($G$26),UPPER(Menus!$A$3)),EXACT(UPPER($G$26),UPPER(Sans_objet)))),(Menus!$B$162*VLOOKUP($I$10,Tableau_ZT_Facteur,2,FALSE)*Facteur_Aide)-SUM($G$17),0))))))<0,0,IF(EXACT(UPPER($G$15),UPPER(Menus!$A$2))=FALSE,0,IF(AND(EXACT(UPPER($G$16),UPPER(Menus!$A$2)),ISNUMBER($G$17)=FALSE),\"Valider G17\",IF(AND(EXACT(UPPER($G$25),UPPER(Menus!$A$2)),EXACT(UPPER($G$26),UPPER(Menus!$A$2))),(Menus!$B$159*VLOOKUP($I$10,Tableau_ZT_Facteur,2,FALSE)*Facteur_Aide)-SUM($G$17),IF(AND(OR(EXACT(UPPER($G$25),UPPER(Menus!$A$3)),EXACT(UPPER($G$25),UPPER(Sans_objet))),EXACT(UPPER($G$26),UPPER(Menus!$A$2))),(Menus!$B$160*VLOOKUP($I$10,Tableau_ZT_Facteur,2,FALSE)*Facteur_Aide)-SUM($G$17),IF(AND(EXACT(UPPER($G$25),UPPER(Menus!$A$2)),OR(EXACT(UPPER($G$26),UPPER(Menus!$A$3)),EXACT(UPPER($G$26),UPPER(Sans_objet)))),(Menus!$B$161*VLOOKUP($I$10,Tableau_ZT_Facteur,2,FALSE)*Facteur_Aide)-SUM($G$17),IF(AND(OR(EXACT(UPPER($G$25),UPPER(Menus!$A$3)),EXACT(UPPER($G$25),UPPER(Sans_objet))),OR(EXACT(UPPER($G$26),UPPER(Menus!$A$3)),EXACT(UPPER($G$26),UPPER(Sans_objet)))),(Menus!$B$162*VLOOKUP($I$10,Tableau_ZT_Facteur,2,FALSE)*Facteur_Aide)-SUM($G$17),0))))))),2)),0)","v":0},{"$f":"IFERROR(IF(AND(OR(EXACT(UPPER($G$4),UPPER(Menus!$A$195)),EXACT(UPPER($G$4),UPPER(Menus!$A$196))),EXACT(UPPER($H$16),UPPER(Menus!$A$2)),ISNUMBER($H$17)=FALSE),\"Valider H17\",ROUND(IF(IF(EXACT(UPPER($H$15),UPPER(Menus!$A$2))=FALSE,0,IF(OR(EXACT(UPPER($G$4),UPPER(Menus!$A$195)),EXACT(UPPER($G$4),UPPER(Menus!$A$196))),IF(AND(EXACT(UPPER($H$16),UPPER(Menus!$A$2)),ISNUMBER($H$17)=FALSE),\"Voir H17\",IF(AND(EXACT(UPPER($H$25),UPPER(Menus!$A$2)),EXACT(UPPER($H$26),UPPER(Menus!$A$2))),(Menus!$C$159*VLOOKUP($I$10,Tableau_ZT_Facteur,2,FALSE)*Facteur_Aide)-SUM($H$17),IF(AND(OR(EXACT(UPPER($H$25),UPPER(Menus!$A$3)),EXACT(UPPER($H$25),UPPER(Sans_objet))),EXACT(UPPER($H$26),UPPER(Menus!$A$2))),(Menus!$C$160*VLOOKUP($I$10,Tableau_ZT_Facteur,2,FALSE)*Facteur_Aide)-SUM($H$17),IF(AND(EXACT(UPPER($H$25),UPPER(Menus!$A$2)),OR(EXACT(UPPER($H$26),UPPER(Menus!$A$3)),EXACT(UPPER($H$26),UPPER(Sans_objet)))),(Menus!$C$161*VLOOKUP($I$10,Tableau_ZT_Facteur,2,FALSE)*Facteur_Aide)-SUM($H$17),IF(AND(OR(EXACT(UPPER($H$25),UPPER(Menus!$A$3)),EXACT(UPPER($H$25),UPPER(Sans_objet))),OR(EXACT(UPPER($H$26),UPPER(Menus!$A$3)),EXACT(UPPER($H$26),UPPER(Sans_objet)))),(Menus!$C$162*VLOOKUP($I$10,Tableau_ZT_Facteur,2,FALSE)*Facteur_Aide)-SUM($H$17),0))))),0))<0,0,IF(EXACT(UPPER($H$15),UPPER(Menus!$A$2))=FALSE,0,IF(OR(EXACT(UPPER($G$4),UPPER(Menus!$A$195)),EXACT(UPPER($G$4),UPPER(Menus!$A$196))),IF(AND(EXACT(UPPER($H$16),UPPER(Menus!$A$2)),ISNUMBER($H$17)=FALSE),\"Valider H17\",IF(AND(EXACT(UPPER($H$25),UPPER(Menus!$A$2)),EXACT(UPPER($H$26),UPPER(Menus!$A$2))),(Menus!$C$159*VLOOKUP($I$10,Tableau_ZT_Facteur,2,FALSE)*Facteur_Aide)-SUM($H$17),IF(AND(OR(EXACT(UPPER($H$25),UPPER(Menus!$A$3)),EXACT(UPPER($H$25),UPPER(Sans_objet))),EXACT(UPPER($H$26),UPPER(Menus!$A$2))),(Menus!$C$160*VLOOKUP($I$10,Tableau_ZT_Facteur,2,FALSE)*Facteur_Aide)-SUM($H$17),IF(AND(EXACT(UPPER($H$25),UPPER(Menus!$A$2)),OR(EXACT(UPPER($H$26),UPPER(Menus!$A$3)),EXACT(UPPER($H$26),UPPER(Sans_objet)))),(Menus!$C$161*VLOOKUP($I$10,Tableau_ZT_Facteur,2,FALSE)*Facteur_Aide)-SUM($H$17),IF(AND(OR(EXACT(UPPER($H$25),UPPER(Menus!$A$3)),EXACT(UPPER($H$25),UPPER(Sans_objet))),OR(EXACT(UPPER($H$26),UPPER(Menus!$A$3)),EXACT(UPPER($H$26),UPPER(Sans_objet)))),(Menus!$C$162*VLOOKUP($I$10,Tableau_ZT_Facteur,2,FALSE)*Facteur_Aide)-SUM($H$17),0))))),0))),2)),0)","v":0},{"$f":"IFERROR(IF(AND(EXACT(UPPER($G$4),UPPER(Menus!$A$196)),EXACT(UPPER($I$16),UPPER(Menus!$A$2)),ISNUMBER($I$17)=FALSE),\"Valider I17\",ROUND(IF(IF(EXACT(UPPER($I$15),UPPER(Menus!$A$2))=FALSE,0,IF(EXACT(UPPER($G$4),UPPER(Menus!$A$196)),IF(AND(EXACT(UPPER($I$16),UPPER(Menus!$A$2)),ISNUMBER($I$17)=FALSE),\"Voir I17\",IF(AND(EXACT(UPPER($I$25),UPPER(Menus!$A$2)),EXACT(UPPER($I$26),UPPER(Menus!$A$2))),(Menus!$D$159*VLOOKUP($I$10,Tableau_ZT_Facteur,2,FALSE)*Facteur_Aide)-SUM($I$17),IF(AND(OR(EXACT(UPPER($I$25),UPPER(Menus!$A$3)),EXACT(UPPER($I$25),UPPER(Sans_objet))),EXACT(UPPER($I$26),UPPER(Menus!$A$2))),(Menus!$D$160*VLOOKUP($I$10,Tableau_ZT_Facteur,2,FALSE)*Facteur_Aide)-SUM($I$17),IF(AND(EXACT(UPPER($I$25),UPPER(Menus!$A$2)),OR(EXACT(UPPER($I$26),UPPER(Menus!$A$3)),EXACT(UPPER($I$26),UPPER(Sans_objet)))),(Menus!$D$161*VLOOKUP($I$10,Tableau_ZT_Facteur,2,FALSE)*Facteur_Aide)-SUM($I$17),IF(AND(OR(EXACT(UPPER($I$25),UPPER(Menus!$A$3)),EXACT(UPPER($I$25),UPPER(Sans_objet))),OR(EXACT(UPPER($I$26),UPPER(Menus!$A$3)),EXACT(UPPER($I$26),UPPER(Sans_objet)))),(Menus!$D$162*VLOOKUP($I$10,Tableau_ZT_Facteur,2,FALSE)*Facteur_Aide)-SUM($I$17),0))))),0))<0,0,IF(EXACT(UPPER($I$15),UPPER(Menus!$A$2))=FALSE,0,IF(EXACT(UPPER($G$4),UPPER(Menus!$A$196)),IF(AND(EXACT(UPPER($I$16),UPPER(Menus!$A$2)),ISNUMBER($I$17)=FALSE),\"Valider I17\",IF(AND(EXACT(UPPER($I$25),UPPER(Menus!$A$2)),EXACT(UPPER($I$26),UPPER(Menus!$A$2))),(Menus!$D$159*VLOOKUP($I$10,Tableau_ZT_Facteur,2,FALSE)*Facteur_Aide)-SUM($I$17),IF(AND(OR(EXACT(UPPER($I$25),UPPER(Menus!$A$3)),EXACT(UPPER($I$25),UPPER(Sans_objet))),EXACT(UPPER($I$26),UPPER(Menus!$A$2))),(Menus!$D$160*VLOOKUP($I$10,Tableau_ZT_Facteur,2,FALSE)*Facteur_Aide)-SUM($I$17),IF(AND(EXACT(UPPER($I$25),UPPER(Menus!$A$2)),OR(EXACT(UPPER($I$26),UPPER(Menus!$A$3)),EXACT(UPPER($I$26),UPPER(Sans_objet)))),(Menus!$D$161*VLOOKUP($I$10,Tableau_ZT_Facteur,2,FALSE)*Facteur_Aide)-SUM($I$17),IF(AND(OR(EXACT(UPPER($I$25),UPPER(Menus!$A$3)),EXACT(UPPER($I$25),UPPER(Sans_objet))),OR(EXACT(UPPER($I$26),UPPER(Menus!$A$3)),EXACT(UPPER($I$26),UPPER(Sans_objet)))),(Menus!$D$162*VLOOKUP($I$10,Tableau_ZT_Facteur,2,FALSE)*Facteur_Aide)-SUM($I$17),0))))),0))),2)),0)","v":0},null,null,null,null,null,null,null,null,null,null,null,null,null,null,null,null,null,null,null,null,null,null,null,null,null,null,null,null,null,null,null,null,null,null,null,null,null,null,null,null,null,null,null,null,null,null,null,null,null,null,null,null,null,null,null,null,null,null,null,null,null,null,null,null,null,null,null,null,null,null,null,null,null,null,null,null,null,null,null,null,null,null,null,null,null,null,null,null,"07152",259,280]
["Aide finale ($)",null,null,null,null,null,{"$f":"IFERROR(ROUND($G$31*$G$28,2),0)","v":0},{"$f":"IFERROR(ROUND($H$31*$H$28,2),0)","v":0},{"$f":"IFERROR(ROUND($I$31*$I$28,2),0)","v":0},null,null,null,null,null,null,null,null,null,null,null,null,null,null,null,null,null,null,null,null,null,null,null,null,null,null,null,null,null,null,null,null,null,null,null,null,null,null,null,null,null,null,null,null,null,null,null,null,null,null,null,null,null,null,null,null,null,null,null,null,null,null,null,null,null,null,null,null,null,null,null,null,null,null,null,null,null,null,null,null,null,null,null,null,null,null,null,null,"07251",260,280]
[null,null,null,null,null,null,null,null,null,null,null,null,null,null,null,null,null,null,null,null,null,null,null,null,null,null,null,null,null,null,null,null,null,null,null,null,null,null,null,null,null,null,null,null,null,null,null,null,null,null,null,null,null,null,null,null,null,null,null,null,null,null,null,null,null,null,null,null,null,null,null,null,null,null,null,null,null,null,null,null,null,null,null,null,null,null,null,null,null,null,null,null,null,null,null,null,null,"07351",261,280]
["Section réservée à l'usage de la Planification",null,null,null,null,null,null,null,null,null,null,null,null,null,null,null,null,null,null,null,null,null,null,null,null,null,null,null,null,null,null,null,null,null,null,null,null,null,null,null,null,null,null,null,null,null,null,null,null,null,null,null,null,null,null,null,null,null,null,null,null,null,null,null,null,null,null,null,null,null,null,null,null,null,null,null,null,null,null,null,null,null,null,null,null,null,null,null,null,null,null,null,null,null,null,null,null,null,455,0]
["Remarques",null,null,null,null,null,null,null,null,null,null,null,null,null,null,null,null,null,null,null,null,null,null,null,null,null,null,null,null,null,null,null,null,null,null,null,null,null,null,null,null,null,null,null,null,null,null,null,null,null,null,null,null,null,null,null,null,null,null,null,null,null,null,null,null,null,null,null,null,null,null,null,null,null,null,null,null,null,null,null,null,null,null,null,null,null,null,null,null,null,null,null,null,null,null,null,null,null,456,0]
[null,null,null,null,null,null,null,null,null,null,null,null,null,null,null,null,null,null,null,null,null,null,null,null,null,null,null,null,null,null,null,null,null,null,null,null,null,null,null,null,null,null,null,null,null,null,null,null,null,null,null,null,null,null,null,null,null,null,null,null,null,null,null,null,null,null,null,null,null,null,null,null,null,null,null,null,null,null,null,null,null,null,null,null,null,null,null,null,null,null,null,null,null,null,null,null,null,null,457,0]
["J'atteste que les renseignements fournis dans ce document afin de calculer l'aide supplémentaire sont complets et conformes à la vérité, au meilleur de mes connaissances.",null,null,null,null,null,null,null,null,null,null,null,null,null,null,null,null,null,null,null,null,null,null,null,null,null,null,null,null,null,null,null,null,null,null,null,null,null,null,null,null,null,null,null,null,null,null,null,null,null,null,null,null,null,null,null,null,null,null,null,null,null,null,null,null,null,null,null,null,null,null,null,null,null,null,null,null,null,null,null,null,null,null,null,null,null,null,null,null,null,null,null,null,null,null,null,null,null,458,60]
[null,null,null,null,null,null,null,null,null,null,null,null,null,null,null,null,null,null,null,null,null,null,null,null,null,null,null,null,null,null,null,null,null,null,null,null,null,null,null,null,null,null,null,null,null,null,null,null,null,null,null,null,null,null,null,null,null,null,null,null,null,null,null,null,null,null,null,null,null,null,null,null,null,null,null,null,null,null,null,null,null,null,null,null,null,null,null,null,null,null,null,null,null,null,null,null,null,null,459,60]
[null,null,null,null,null,null,null,null,null,null,null,null,null,null,null,null,null,null,null,null,null,null,null,null,null,null,null,null,null,null,null,null,null,null,null,null,null,null,null,null,null,null,null,null,null,null,null,null,null,null,null,null,null,null,null,null,null,null,null,null,null,null,null,null,null,null,null,null,null,null,null,null,null,null,null,null,null,null,null,null,null,null,null,null,null,null,null,null,null,null,null,null,null,null,null,null,null,null,460,200]
[null,null,null,null,null,null,null,null,null,null,null,null,null,null,null,null,null,null,null,null,null,null,null,null,null,null,null,null,null,null,null,null,null,null,null,null,null,null,null,null,null,null,null,null,null,null,null,null,null,null,null,null,null,null,null,null,null,null,null,null,null,null,null,null,null,null,null,null,null,null,null,null,null,null,null,null,null,null,null,null,null,null,null,null,null,null,null,null,null,null,null,null,null,null,null,null,null,null,461,240]
["Nom et prénom de l'ingénieur forestier",null,null,null,null,null,"No de permis",null,null,null,null,null,null,null,null,null,null,null,null,null,null,null,null,null,null,null,null,null,null,null,null,null,null,null,null,null,null,null,null,null,null,null,null,null,null,null,null,null,null,null,null,null,null,null,null,null,null,null,null,null,null,null,null,null,null,null,null,null,null,null,null,null,null,null,null,null,null,null,null,null,null,null,null,null,null,null,null,null,null,null,null,null,null,null,null,null,null,null,551,0]
[null,null,null,null,null,null,{"$f":"TODAY()","v":"2021-06-09"},null,null,null,null,null,null,null,null,null,null,null,null,null,null,null,null,null,null,null,null,null,null,null,null,null,null,null,null,null,null,null,null,null,null,null,null,null,null,null,null,null,null,null,null,null,null,null,null,null,null,null,null,null,null,null,null,null,null,null,null,null,null,null,null,null,null,null,null,null,null,null,null,null,null,null,null,null,null,null,null,null,null,null,null,null,null,null,null,null,null,null,650,0]
[null,null,null,null,null,null,null,null,null,null,null,null,null,null,null,null,null,null,null,null,null,null,null,null,null,null,null,null,null,null,null,null,null,null,null,null,null,null,null,null,null,null,null,null,null,null,null,null,null,null,null,null,null,null,null,null,null,null,null,null,null,null,null,null,null,null,null,null,null,null,null,null,null,null,null,null,null,null,null,null,null,null,null,null,null,null,null,null,null,null,null,null,null,null,null,null,null,null,651,40]
["Signature de l'ingénieur forestier",null,null,null,null,null,"Date (AAAA-MM-JJ)",null,null,null,null,null,null,null,null,null,null,null,null,null,null,null,null,null,null,null,null,null,null,null,null,null,null,null,null,null,null,null,null,null,null,null,null,null,null,null,null,null,null,null,null,null,null,null,null,null,null,null,null,null,null,null,null,null,null,null,null,null,null,null,null,null,null,null,null,null,null,null,null,null,null,null,null,null,null,null,null,null,null,null,null,null,null,null,null,null,null,null,652,200]
["Section réservée à l'usage du BGAD",null,null,null,null,null,null,null,null,null,null,null,null,null,null,null,null,null,null,null,null,null,null,null,null,null,null,null,null,null,null,null,null,null,null,null,null,null,null,null,null,null,null,null,null,null,null,null,null,null,null,null,null,null,null,null,null,null,null,null,null,null,null,null,null,null,null,null,null,null,null,null,null,null,null,null,null,null,null,null,null,null,null,null,null,null,null,null,null,null,null,null,null,null,null,null,null,null,653,140]
["Remarques",null,null,null,null,null,null,null,null,null,null,null,null,null,null,null,null,null,null,null,null,null,null,null,null,null,null,null,null,null,null,null,null,null,null,null,null,null,null,null,null,null,null,null,null,null,null,null,null,null,null,null,null,null,null,null,null,null,null,null,null,null,null,null,null,null,null,null,null,null,null,null,null,null,null,null,null,null,null,null,null,null,null,null,null,null,null,null,null,null,null,null,null,null,null,null,null,null,654,200]
[null,null,null,null,null,null,null,null,null,null,null,null,null,null,null,null,null,null,null,null,null,null,null,null,null,null,null,null,null,null,null,null,null,null,null,null,null,null,null,null,null,null,null,null,null,null,null,null,null,null,null,null,null,null,null,null,null,null,null,null,null,null,null,null,null,null,null,null,null,null,null,null,null,null,null,null,null,null,null,null,null,null,null,null,null,null,null,null,null,null,null,null,null,null,null,null,null,null,655,40]
["J'atteste que les renseignements fournis dans ce document afin de calculer l'aide supplémentaire sont complets et conformes à la vérité, au meilleur de mes connaissances.",null,null,null,null,null,null,null,null,null,null,null,null,null,null,null,null,null,null,null,null,null,null,null,null,null,null,null,null,null,null,null,null,null,null,null,null,null,null,null,null,null,null,null,null,null,null,null,null,null,null,null,null,null,null,null,null,null,null,null,null,null,null,null,null,null,null,null,null,null,null,null,null,null,null,null,null,null,null,null,null,null,null,null,null,null,null,null,null,null,null,null,null,null,null,null,null,null,656,140]
[null,null,null,null,null,null,null,null,null,null,null,null,null,null,null,null,null,null,null,null,null,null,null,null,null,null,null,null,null,null,null,null,null,null,null,null,null,null,null,null,null,null,null,null,null,null,null,null,null,null,null,null,null,null,null,null,null,null,null,null,null,null,null,null,null,null,null,null,null,null,null,null,null,null,null,null,null,null,null,null,null,null,null,null,null,null,null,null,null,null,null,null,null,null,null,null,null,null,657,140]
[null,null,null,null,null,null,null,null,null,null,null,null,null,null,null,null,null,null,null,null,null,null,null,null,null,null,null,null,null,null,null,null,null,null,null,null,null,null,null,null,null,null,null,null,null,null,null,null,null,null,null,null,null,null,null,null,null,null,null,null,null,null,null,null,null,null,null,null,null,null,null,null,null,null,null,null,null,null,null,null,null,null,null,null,null,null,null,null,null,null,null,null,null,null,null,null,null,null,658,220]
[null,null,null,null,null,null,null,null,null,null,null,null,null,null,null,null,null,null,null,null,null,null,null,null,null,null,null,null,null,null,null,null,null,null,null,null,null,null,null,null,null,null,null,null,null,null,null,null,null,null,null,null,null,null,null,null,null,null,null,null,null,null,null,null,null,null,null,null,null,null,null,null,null,null,null,null,null,null,null,null,null,null,null,null,null,null,null,null,null,null,null,null,null,null,null,null,null,null,659,280]
["Nom et prénom de l'ingénieur forestier",null,null,null,null,null,"No de permis",null,null,null,null,null,null,null,null,null,null,null,null,null,null,null,null,null,null,null,null,null,null,null,null,null,null,null,null,null,null,null,null,null,null,null,null,null,null,null,null,null,null,null,null,null,null,null,null,null,null,null,null,null,null,null,null,null,null,null,null,null,null,null,null,null,null,null,null,null,null,null,null,null,null,null,null,null,null,null,null,null,null,null,null,null,null,null,null,null,null,null,660,160]
[null,null,null,null,null,null,{"$f":"TODAY()","v":"2021-06-09"},null,null,null,null,null,null,null,null,null,null,null,null,null,null,null,null,null,null,null,null,null,null,null,null,null,null,null,null,null,null,null,null,null,null,null,null,null,null,null,null,null,null,null,null,null,null,null,null,null,null,null,null,null,null,null,null,null,null,null,null,null,null,null,null,null,null,null,null,null,null,null,null,null,null,null,null,null,null,null,null,null,null,null,null,null,null,null,null,null,null,null,661,40]
[null,null,null,null,null,null,null,null,null,null,null,null,null,null,null,null,null,null,null,null,null,null,null,null,null,null,null,null,null,null,null,null,null,null,null,null,null,null,null,null,null,null,null,null,null,null,null,null,null,null,null,null,null,null,null,null,null,null,null,null,null,null,null,null,null,null,null,null,null,null,null,null,null,null,null,null,null,null,null,null,null,null,null,null,null,null,null,null,null,null,null,null,null,null,null,null,null,null,662,0]
["Signature de l'ingénieur forestier",null,null,null,null,null,"Date (AAAA-MM-JJ)",null,null,null,null,null,null,null,null,null,null,null,null,null,null,null,null,null,null,null,null,null,null,null,null,null,null,null,null,null,null,null,null,null,null,null,null,null,null,null,null,null,null,null,null,null,null,null,null,null,null,null,null,null,null,null,null,null,null,null,null,null,null,null,null,null,null,null,null,null,null,null,null,null,null,null,null,null,null,null,null,null,null,null,null,null,null,null,null,null,null,null,750,0]
["Section réservée à l'usage du Ministère",null,null,null,null,null,null,null,null,null,null,null,null,null,null,null,null,null,null,null,null,null,null,null,null,null,null,null,null,null,null,null,null,null,null,null,null,null,null,null,null,null,null,null,null,null,null,null,null,null,null,null,null,null,null,null,null,null,null,null,null,null,null,null,null,null,null,null,null,null,null,null,null,null,null,null,null,null,null,null,null,null,null,null,null,null,null,null,null,null,null,null,null,null,null,null,null,null,751,40]
["Remarques",null,null,null,null,null,null,null,null,null,null,null,null,null,null,null,null,null,null,null,null,null,null,null,null,null,null,null,null,null,null,null,null,null,null,null,null,null,null,null,null,null,null,null,null,null,null,null,null,null,null,null,null,null,null,null,null,null,null,null,null,null,null,null,null,null,null,null,null,null,null,null,null,null,null,null,null,null,null,null,null,null,null,null,null,null,null,null,null,null,null,null,null,null,null,null,null,null,752,220]
[null,null,null,null,null,null,null,null,null,null,null,null,null,null,null,null,null,null,null,null,null,null,null,null,null,null,null,null,null,null,null,null,null,null,null,null,null,null,null,null,null,null,null,null,null,null,null,null,null,null,null,null,null,null,null,null,null,null,null,null,null,null,null,null,null,null,null,null,null,null,null,null,null,null,null,null,null,null,null,null,null,null,null,null,null,null,null,null,null,null,null,null,null,null,null,null,null,null,753,280]
["J'atteste que les renseignements fournis dans ce document afin de calculer l'aide supplémentaire sont complets et conformes à la vérité, au meilleur de mes connaissances.",null,null,null,null,null,null,null,null,null,null,null,null,null,null,null,null,null,null,null,null,null,null,null,null,null,null,null,null,null,null,null,null,null,null,null,null,null,null,null,null,null,null,null,null,null,null,null,null,null,null,null,null,null,null,null,null,null,null,null,null,null,null,null,null,null,null,null,null,null,null,null,null,null,null,null,null,null,null,null,null,null,null,null,null,null,null,null,null,null,null,null,null,null,null,null,null,null,754,80]
[null,null,null,null,null,null,null,null,null,null,null,null,null,null,null,null,null,null,null,null,null,null,null,null,null,null,null,null,null,null,null,null,null,null,null,null,null,null,null,null,null,null,null,null,null,null,null,null,null,null,null,null,null,null,null,null,null,null,null,null,null,null,null,null,null,null,null,null,null,null,null,null,null,null,null,null,null,null,null,null,null,null,null,null,null,null,null,null,null,null,null,null,null,null,null,null,null,null,755,60]
[null,null,null,null,null,null,null,null,null,null,null,null,null,null,null,null,null,null,null,null,null,null,null,null,null,null,null,null,null,null,null,null,null,null,null,null,null,null,null,null,null,null,null,null,null,null,null,null,null,null,null,null,null,null,null,null,null,null,null,null,null,null,null,null,null,null,null,null,null,null,null,null,null,null,null,null,null,null,null,null,null,null,null,null,null,null,null,null,null,null,null,null,null,null,null,null,null,null,756,260]
[null,null,null,null,null,null,null,null,null,null,null,null,null,null,null,null,null,null,null,null,null,null,null,null,null,null,null,null,null,null,null,null,null,null,null,null,null,null,null,null,null,null,null,null,null,null,null,null,null,null,null,null,null,null,null,null,null,null,null,null,null,null,null,null,null,null,null,null,null,null,null,null,null,null,null,null,null,null,null,null,null,null,null,null,null,null,null,null,null,null,null,null,null,null,null,null,null,null,757,260]
["Nom et prénom de l'ingénieur forestier",null,null,null,null,null,"No de permis",null,null,null,null,null,null,null,null,null,null,null,null,null,null,null,null,null,null,null,null,null,null,null,null,null,null,null,null,null,null,null,null,null,null,null,null,null,null,null,null,null,null,null,null,null,null,null,null,null,null,null,null,null,null,null,null,null,null,null,null,null,null,null,null,null,null,null,null,null,null,null,null,null,null,null,null,null,null,null,null,null,null,null,null,null,null,null,null,null,null,null,758,280]
[null,null,null,null,null,null,{"$f":"TODAY()","v":"2021-06-09"},null,null,null,null,null,null,null,null,null,null,null,null,null,null,null,null,null,null,null,null,null,null,null,null,null,null,null,null,null,null,null,null,null,null,null,null,null,null,null,null,null,null,null,null,null,null,null,null,null,null,null,null,null,null,null,null,null,null,null,null,null,null,null,null,null,null,null,null,null,null,null,null,null,null,null,null,null,null,null,null,null,null,null,null,null,null,null,null,null,null,null,850,0]
[null,null,null,null,null,null,null,null,null,null,null,null,null,null,null,null,null,null,null,null,null,null,null,null,null,null,null,null,null,null,null,null,null,null,null,null,null,null,null,null,null,null,null,null,null,null,null,null,null,null,null,null,null,null,null,null,null,null,null,null,null,null,null,null,null,null,null,null,null,null,null,null,null,null,null,null,null,null,null,null,null,null,null,null,null,null,null,null,null,null,null,null,null,null,null,null,null,null,851,0]
["Signature de l'ingénieur forestier",null,null,null,null,null,"Date (AAAA-MM-JJ)",null,null,null,null,null,null,null,null,null,null,null,null,null,null,null,null,null,null,null,null,null,null,null,null,null,null,null,null,null,null,null,null,null,null,null,null,null,null,null,null,null,null,null,null,null,null,null,null,null,null,null,null,null,null,null,null,null,null,null,null,null,null,null,null,null,null,null,null,null,null,null,null,null,null,null,null,null,null,null,null,null,null,null,null,null,null,null,null,null,null,null,852,0]
[null,null,null,null,null,null,null,null,null,null,null,null,null,null,null,null,null,null,null,null,null,null,null,null,null,null,null,null,null,null,null,null,null,null,null,null,null,null,null,null,null,null,null,null,null,null,null,null,null,null,null,null,null,null,null,null,null,null,null,null,null,null,null,null,null,null,null,null,null,null,null,null,null,null,null,null,null,null,null,null,null,null,null,null,null,null,null,null,null,null,null,null,null,null,null,null,null,null,853,0]
[null,null,null,null,null,null,null,null,null,null,null,null,null,null,null,null,null,null,null,null,null,null,null,null,null,null,null,null,null,null,null,null,null,null,null,null,null,null,null,null,null,null,null,null,null,null,null,null,null,null,null,null,null,null,null,null,null,null,null,null,null,null,null,null,null,null,null,null,null,null,null,null,null,null,null,null,null,null,null,null,null,null,null,null,null,null,null,null,null,null,null,null,null,null,null,null,null,null,854,0]
[null,null,null,null,null,null,null,null,null,null,null,null,null,null,null,null,null,null,null,null,null,null,null,null,null,null,null,null,null,null,null,null,null,null,null,null,null,null,null,null,null,null,null,null,null,null,null,null,null,null,null,null,null,null,null,null,null,null,null,null,null,null,null,null,null,null,null,null,null,null,null,null,null,null,null,null,null,null,null,null,null,null,null,null,null,null,null,null,null,null,null,null,null,null,null,null,null,null,855,0]
[null,null,null,null,null,null,null,null,null,null,null,null,null,null,null,null,null,null,null,null,null,null,null,null,null,null,null,null,null,null,null,null,null,null,null,null,null,null,null,null,null,null,null,null,null,null,null,null,null,null,null,null,null,null,null,null,null,null,null,null,null,null,null,null,null,null,null,null,null,null,null,null,null,null,null,null,null,null,null,null,null,null,null,null,null,null,null,null,null,null,null,null,null,null,null,null,null,null,856,60]
[null,null,null,null,null,null,null,null,null,null,null,null,null,null,null,null,null,null,null,null,null,null,null,null,null,null,null,null,null,null,null,null,null,null,null,null,null,null,null,null,null,null,null,null,null,null,null,null,null,null,null,null,null,null,null,null,null,null,null,null,null,null,null,null,null,null,null,null,null,null,null,null,null,null,null,null,null,null,null,null,null,null,null,null,null,null,null,null,null,null,null,null,null,null,null,null,null,null,857,80]
[null,null,null,null,null,null,null,null,null,null,null,null,null,null,null,null,null,null,null,null,null,null,null,null,null,null,null,null,null,null,null,null,null,null,null,null,null,null,null,null,null,null,null,null,null,null,null,null,null,null,null,null,null,null,null,null,null,null,null,null,null,null,null,null,null,null,null,null,null,null,null,null,null,null,null,null,null,null,null,null,null,null,null,null,null,null,null,null,null,null,null,null,null,null,null,null,null,null,858,100]
[null,null,null,null,null,null,null,null,null,null,null,null,null,null,null,null,null,null,null,null,null,null,null,null,null,null,null,null,null,null,null,null,null,null,null,null,null,null,null,null,null,null,null,null,null,null,null,null,null,null,null,null,null,null,null,null,null,null,null,null,null,null,null,null,null,null,null,null,null,null,null,null,null,null,null,null,null,null,null,null,null,null,null,null,null,null,null,null,null,null,null,null,null,null,null,null,null,null,859,180]
[null,null,null,null,null,null,null,null,null,null,null,null,null,null,null,null,null,null,null,null,null,null,null,null,null,null,null,null,null,null,null,null,null,null,null,null,null,null,null,null,null,null,null,null,null,null,null,null,null,null,null,null,null,null,null,null,null,null,null,null,null,null,null,null,null,null,null,null,null,null,null,null,null,null,null,null,null,null,null,null,null,null,null,null,null,null,null,null,null,null,null,null,null,null,null,null,null,null,860,260]
[null,null,null,null,null,null,null,null,null,null,null,null,null,null,null,null,null,null,null,null,null,null,null,null,null,null,null,null,null,null,null,null,null,null,null,null,null,null,null,null,null,null,null,null,null,null,null,null,null,null,null,null,null,null,null,null,null,null,null,null,null,null,null,null,null,null,null,null,null,null,null,null,null,null,null,null,null,null,null,null,null,null,null,null,null,null,null,null,null,null,null,null,null,null,null,null,null,null,861,240]
[null,null,null,null,null,null,null,null,null,null,null,null,null,null,null,null,null,null,null,null,null,null,null,null,null,null,null,null,null,null,null,null,null,null,null,null,null,null,null,null,null,null,null,null,null,null,null,null,null,null,null,null,null,null,null,null,null,null,null,null,null,null,null,null,null,null,null,null,null,null,null,null,null,null,null,null,null,null,null,null,null,null,null,null,null,null,null,null,null,null,null,null,null,null,null,null,null,null,862,280]
[null,null,null,null,null,null,null,null,null,null,null,null,null,null,null,null,null,null,null,null,null,null,null,null,null,null,null,null,null,null,null,null,null,null,null,null,null,null,null,null,null,null,null,null,null,null,null,null,null,null,null,null,null,null,null,null,null,null,null,null,null,null,null,null,null,null,null,null,null,null,null,null,null,null,null,null,null,null,null,null,null,null,null,null,null,null,null,null,null,null,null,null,null,null,null,null,null,null,863,280]
[null,null,null,null,null,null,null,null,null,null,null,null,null,null,null,null,null,null,null,null,null,null,null,null,null,null,null,null,null,null,null,null,null,null,null,null,null,null,null,null,null,null,null,null,null,null,null,null,null,null,null,null,null,null,null,null,null,null,null,null,null,null,null,null,null,null,null,null,null,null,null,null,null,null,null,null,null,null,null,null,null,null,null,null,null,null,null,null,null,null,null,null,null,null,null,null,null,null,864,280]
[null,null,null,null,null,null,null,null,null,null,null,null,null,null,null,null,null,null,null,null,null,null,null,null,null,null,null,null,null,null,null,null,null,null,null,null,null,null,null,null,null,null,null,null,null,null,null,null,null,null,null,null,null,null,null,null,null,null,null,null,null,null,null,null,null,null,null,null,null,null,null,null,null,null,null,null,null,null,null,null,null,null,null,null,null,null,null,null,null,null,null,null,null,null,null,null,null,null,865,280]
[null,null,null,null,null,null,null,null,null,null,null,null,null,null,null,null,null,null,null,null,null,null,null,null,null,null,null,null,null,null,null,null,null,null,null,null,null,null,null,null,null,null,null,null,null,null,null,null,null,null,null,null,null,null,null,null,null,null,null,null,null,null,null,null,null,null,null,null,null,null,null,null,null,null,null,null,null,null,null,null,null,null,null,null,null,null,null,null,null,null,null,null,null,null,null,null,null,null,866,280]
[null,null,null,null,null,null,null,null,null,null,null,null,null,null,null,null,null,null,null,null,null,null,null,null,null,null,null,null,null,null,null,null,null,null,null,null,null,null,null,null,null,null,null,null,null,null,null,null,null,null,null,null,null,null,null,null,null,null,null,null,null,null,null,null,null,null,null,null,null,null,null,null,null,null,null,null,null,null,null,null,null,null,null,null,null,null,null,null,null,null,null,null,null,null,null,null,null,null,867,280]
[null,null,null,null,null,null,null,null,null,null,null,null,null,null,null,null,null,null,null,null,null,null,null,null,null,null,null,null,null,null,null,null,null,null,null,null,null,null,null,null,null,null,null,null,null,null,null,null,null,null,null,null,null,null,null,null,null,null,null,null,null,null,null,null,null,null,null,null,null,null,null,null,null,null,null,null,null,null,null,null,null,null,null,null,null,null,null,null,null,null,null,null,null,null,null,null,null,null,868,280]
[null,null,null,null,null,null,null,null,null,null,null,null,null,null,null,null,null,null,null,null,null,null,null,null,null,null,null,null,null,null,null,null,null,null,null,null,null,null,null,null,null,null,null,null,null,null,null,null,null,null,null,null,null,null,null,null,null,null,null,null,null,null,null,null,null,null,null,null,null,null,null,null,null,null,null,null,null,null,null,null,null,null,null,null,null,null,null,null,null,null,null,null,null,null,null,null,null,null,869,280]
[null,null,null,null,null,null,null,null,null,null,null,null,null,null,null,null,null,null,null,null,null,null,null,null,null,null,null,null,null,null,null,null,null,null,null,null,null,null,null,null,null,null,null,null,null,null,null,null,null,null,null,null,null,null,null,null,null,null,null,null,null,null,null,null,null,null,null,null,null,null,null,null,null,null,null,null,null,null,null,null,null,null,null,null,null,null,null,null,null,null,null,null,null,null,null,null,null,null,870,280]
[null,null,null,null,null,null,null,null,null,null,null,null,null,null,null,null,null,null,null,null,null,null,null,null,null,null,null,null,null,null,null,null,null,null,null,null,null,null,null,null,null,null,null,null,null,null,null,null,null,null,null,null,null,null,null,null,null,null,null,null,null,null,null,null,null,null,null,null,null,null,null,null,null,null,null,null,null,null,null,null,null,null,null,null,null,null,null,null,null,null,null,null,null,null,null,null,null,null,871,280]
[null,null,null,null,null,null,null,null,null,null,null,null,null,null,null,null,null,null,null,null,null,null,null,null,null,null,null,null,null,null,null,null,null,null,null,null,null,null,null,null,null,null,null,null,null,null,null,null,null,null,null,null,null,null,null,null,null,null,null,null,null,null,null,null,null,null,null,null,null,null,null,null,null,null,null,null,null,null,null,null,null,null,null,null,null,null,null,null,null,null,null,null,null,null,null,null,null,null,872,280]
[null,null,null,null,null,null,null,null,null,null,null,null,null,null,null,null,null,null,null,null,null,null,null,null,null,null,null,null,null,null,null,null,null,null,null,null,null,null,null,null,null,null,null,null,null,null,null,null,null,null,null,null,null,null,null,null,null,null,null,null,null,null,null,null,null,null,null,null,null,null,null,null,null,null,null,null,null,null,null,null,null,null,null,null,null,null,null,null,null,null,null,null,null,null,null,null,null,null,873,280]
[null,null,null,null,null,null,null,null,null,null,null,null,null,null,null,null,null,null,null,null,null,null,null,null,null,null,null,null,null,null,null,null,null,null,null,null,null,null,null,null,null,null,null,null,null,null,null,null,null,null,null,null,null,null,null,null,null,null,null,null,null,null,null,null,null,null,null,null,null,null,null,null,null,null,null,null,null,null,null,null,null,null,null,null,null,null,null,null,null,null,null,null,null,null,null,null,null,null,874,280]
[null,null,null,null,null,null,null,null,null,null,null,null,null,null,null,null,null,null,null,null,null,null,null,null,null,null,null,null,null,null,null,null,null,null,null,null,null,null,null,null,null,null,null,null,null,null,null,null,null,null,null,null,null,null,null,null,null,null,null,null,null,null,null,null,null,null,null,null,null,null,null,null,null,null,null,null,null,null,null,null,null,null,null,null,null,null,null,null,null,null,null,null,null,null,null,null,null,null,875,280]
[null,null,null,null,null,null,null,null,null,null,null,null,null,null,null,null,null,null,null,null,null,null,null,null,null,null,null,null,null,null,null,null,null,null,null,null,null,null,null,null,null,null,null,null,null,null,null,null,null,null,null,null,null,null,null,null,null,null,null,null,null,null,null,null,null,null,null,null,null,null,null,null,null,null,null,null,null,null,null,null,null,null,null,null,null,null,null,null,null,null,null,null,null,null,null,null,null,null,876,280]
[null,null,null,null,null,null,null,null,null,null,null,null,null,null,null,null,null,null,null,null,null,null,null,null,null,null,null,null,null,null,null,null,null,null,null,null,null,null,null,null,null,null,null,null,null,null,null,null,null,null,null,null,null,null,null,null,null,null,null,null,null,null,null,null,null,null,null,null,null,null,null,null,null,null,null,null,null,null,null,null,null,null,null,null,null,null,null,null,null,null,null,null,null,null,null,null,null,null,877,280]
[null,null,null,null,null,null,null,null,null,null,null,null,null,null,null,null,null,null,null,null,null,null,null,null,null,null,null,null,null,null,null,null,null,null,null,null,null,null,null,null,null,null,null,null,null,null,null,null,null,null,null,null,null,null,null,null,null,null,null,null,null,null,null,null,null,null,null,null,null,null,null,null,null,null,null,null,null,null,null,null,null,null,null,null,null,null,null,null,null,null,null,null,null,null,null,null,null,null,878,280]
[null,null,null,null,null,null,null,null,null,null,null,null,null,null,null,null,null,null,null,null,null,null,null,null,null,null,null,null,null,null,null,null,null,null,null,null,null,null,null,null,null,null,null,null,null,null,null,null,null,null,null,null,null,null,null,null,null,null,null,null,null,null,null,null,null,null,null,null,null,null,null,null,null,null,null,null,null,null,null,null,null,null,null,null,null,null,null,null,null,null,null,null,null,null,null,null,null,null,879,280]
[null,null,null,null,null,null,null,null,null,null,null,null,null,null,null,null,null,null,null,null,null,null,null,null,null,null,null,null,null,null,null,null,null,null,null,null,null,null,null,null,null,null,null,null,null,null,null,null,null,null,null,null,null,null,null,null,null,null,null,null,null,null,null,null,null,null,null,null,null,null,null,null,null,null,null,null,null,null,null,null,null,null,null,null,null,null,null,null,null,null,null,null,null,null,null,null,null,null,880,280]
[null,null,null,null,null,null,null,null,null,null,null,null,null,null,null,null,null,null,null,null,null,null,null,null,null,null,null,null,null,null,null,null,null,null,null,null,null,null,null,null,null,null,null,null,null,null,null,null,null,null,null,null,null,null,null,null,null,null,null,null,null,null,null,null,null,null,null,null,null,null,null,null,null,null,null,null,null,null,null,null,null,null,null,null,null,null,null,null,null,null,null,null,null,null,null,null,null,null,881,280]
[null,null,null,null,null,null,null,null,null,null,null,null,null,null,null,null,null,null,null,null,null,null,null,null,null,null,null,null,null,null,null,null,null,null,null,null,null,null,null,null,null,null,null,null,null,null,null,null,null,null,null,null,null,null,null,null,null,null,null,null,null,null,null,null,null,null,null,null,null,null,null,null,null,null,null,null,null,null,null,null,null,null,null,null,null,null,null,null,null,null,null,null,null,null,null,null,null,null,882,280]
[null,null,null,null,null,null,null,null,null,null,null,null,null,null,null,null,null,null,null,null,null,null,null,null,null,null,null,null,null,null,null,null,null,null,null,null,null,null,null,null,null,null,null,null,null,null,null,null,null,null,null,null,null,null,null,null,null,null,null,null,null,null,null,null,null,null,null,null,null,null,null,null,null,null,null,null,null,null,null,null,null,null,null,null,null,null,null,null,null,null,null,null,null,null,null,null,null,null,883,280]
[null,null,null,null,null,null,null,null,null,null,null,null,null,null,null,null,null,null,null,null,null,null,null,null,null,null,null,null,null,null,null,null,null,null,null,null,null,null,null,null,null,null,null,null,null,null,null,null,null,null,null,null,null,null,null,null,null,null,null,null,null,null,null,null,null,null,null,null,null,null,null,null,null,null,null,null,null,null,null,null,null,null,null,null,null,null,null,null,null,null,null,null,null,null,null,null,null,null,884,280]
[null,null,null,null,null,null,null,null,null,null,null,null,null,null,null,null,null,null,null,null,null,null,null,null,null,null,null,null,null,null,null,null,null,null,null,null,null,null,null,null,null,null,null,null,null,null,null,null,null,null,null,null,null,null,null,null,null,null,null,null,null,null,null,null,null,null,null,null,null,null,null,null,null,null,null,null,null,null,null,null,null,null,null,null,null,null,null,null,null,null,null,null,null,null,null,null,null,null,885,280]
[null,null,null,null,null,null,null,null,null,null,null,null,null,null,null,null,null,null,null,null,null,null,null,null,null,null,null,null,null,null,null,null,null,null,null,null,null,null,null,null,null,null,null,null,null,null,null,null,null,null,null,null,null,null,null,null,null,null,null,null,null,null,null,null,null,null,null,null,null,null,null,null,null,null,null,null,null,null,null,null,null,null,null,null,null,null,null,null,null,null,null,null,null,null,null,null,null,null,886,280]
[null,null,null,null,null,null,null,null,null,null,null,null,null,null,null,null,null,null,null,null,null,null,null,null,null,null,null,null,null,null,null,null,null,null,null,null,null,null,null,null,null,null,null,null,null,null,null,null,null,null,null,null,null,null,null,null,null,null,null,null,null,null,null,null,null,null,null,null,null,null,null,null,null,null,null,null,null,null,null,null,null,null,null,null,null,null,null,null,null,null,null,null,null,null,null,null,null,null,887,280]
[null,null,null,null,null,null,null,null,null,null,null,null,null,null,null,null,null,null,null,null,null,null,null,null,null,null,null,null,null,null,null,null,null,null,null,null,null,null,null,null,null,null,null,null,null,null,null,null,null,null,null,null,null,null,null,null,null,null,null,null,null,null,null,null,null,null,null,null,null,null,null,null,null,null,null,null,null,null,null,null,null,null,null,null,null,null,null,null,null,null,null,null,null,null,null,null,null,null,888,280]
[null,null,null,null,null,null,null,null,null,null,null,null,null,null,null,null,null,null,null,null,null,null,null,null,null,null,null,null,null,null,null,null,null,null,null,null,null,null,null,null,null,null,null,null,null,null,null,null,null,null,null,null,null,null,null,null,null,null,null,null,null,null,null,null,null,null,null,null,null,null,null,null,null,null,null,null,null,null,null,null,null,null,null,null,null,null,null,null,null,null,null,null,null,null,null,null,null,null,889,240]
[null,null,null,null,null,null,null,null,null,null,null,null,null,null,null,null,null,null,null,null,null,null,null,null,null,null,null,null,null,null,null,null,null,null,null,null,null,null,null,null,null,null,null,null,null,null,null,null,null,null,null,null,null,null,null,null,null,null,null,null,null,null,null,null,null,null,null,null,null,null,null,null,null,null,null,null,null,null,null,null,null,null,null,null,null,null,null,null,null,null,null,null,null,null,null,null,null,null,890,280]
[null,null,null,null,null,null,null,null,null,null,null,null,null,null,null,null,null,null,null,null,null,null,null,null,null,null,null,null,null,null,null,null,null,null,null,null,null,null,null,null,null,null,null,null,null,null,null,null,null,null,null,null,null,null,null,null,null,null,null,null,null,null,null,null,null,null,null,null,null,null,null,null,null,null,null,null,null,null,null,null,null,null,null,null,null,null,null,null,null,null,null,null,null,null,null,null,null,null,891,280]
[null,null,null,null,null,null,null,null,null,null,null,null,null,null,null,null,null,null,null,null,null,null,null,null,null,null,null,null,null,null,null,null,null,null,null,null,null,null,null,null,null,null,null,null,null,null,null,null,null,null,null,null,null,null,null,null,null,null,null,null,null,null,null,null,null,null,null,null,null,null,null,null,null,null,null,null,null,null,null,null,null,null,null,null,null,null,null,null,null,null,null,null,null,null,null,null,null,null,892,280]
[null,null,null,null,null,null,null,null,null,null,null,null,null,null,null,null,null,null,null,null,null,null,null,null,null,null,null,null,null,null,null,null,null,null,null,null,null,null,null,null,null,null,null,null,null,null,null,null,null,null,null,null,null,null,null,null,null,null,null,null,null,null,null,null,null,null,null,null,null,null,null,null,null,null,null,null,null,null,null,null,null,null,null,null,null,null,null,null,null,null,null,null,null,null,null,null,null,null,950,280]
[null,null,null,null,null,null,null,null,null,null,null,null,null,null,null,null,null,null,null,null,null,null,null,null,null,null,null,null,null,null,null,null,null,null,null,null,null,null,null,null,null,null,null,null,null,null,null,null,null,null,null,null,null,null,null,null,null,null,null,null,null,null,null,null,null,null,null,null,null,null,null,null,null,null,null,null,null,null,null,null,null,null,null,null,null,null,null,null,null,null,null,null,null,null,null,null,null,null,951,280]
[null,null,null,null,null,null,null,null,null,null,null,null,null,null,null,null,null,null,null,null,null,null,null,null,null,null,null,null,null,null,null,null,null,null,null,null,null,null,null,null,null,null,null,null,null,null,null,null,null,null,null,null,null,null,null,null,null,null,null,null,null,null,null,null,null,null,null,null,null,null,null,null,null,null,null,null,null,null,null,null,null,null,null,null,null,null,null,null,null,null,null,null,null,null,null,null,null,null,952,280]
[null,null,null,null,null,null,null,null,null,null,null,null,null,null,null,null,null,null,null,null,null,null,null,null,null,null,null,null,null,null,null,null,null,null,null,null,null,null,null,null,null,null,null,null,null,null,null,null,null,null,null,null,null,null,null,null,null,null,null,null,null,null,null,null,null,null,null,null,null,null,null,null,null,null,null,null,null,null,null,null,null,null,null,null,null,null,null,null,null,null,null,null,null,null,null,null,null,null,953,280]
[null,null,null,null,null,null,null,null,null,null,null,null,null,null,null,null,null,null,null,null,null,null,null,null,null,null,null,null,null,null,null,null,null,null,null,null,null,null,null,null,null,null,null,null,null,null,null,null,null,null,null,null,null,null,null,null,null,null,null,null,null,null,null,null,null,null,null,null,null,null,null,null,null,null,null,null,null,null,null,null,null,null,null,null,null,null,null,null,null,null,null,null,null,null,null,null,null,null,954,280]
[null,null,null,null,null,null,null,null,null,null,null,null,null,null,null,null,null,null,null,null,null,null,null,null,null,null,null,null,null,null,null,null,null,null,null,null,null,null,null,null,null,null,null,null,null,null,null,null,null,null,null,null,null,null,null,null,null,null,null,null,null,null,null,null,null,null,null,null,null,null,null,null,null,null,null,null,null,null,null,null,null,null,null,null,null,null,null,null,null,null,null,null,null,null,null,null,null,null,955,280]
[null,null,null,null,null,null,null,null,null,null,null,null,null,null,null,null,null,null,null,null,null,null,null,null,null,null,null,null,null,null,null,null,null,null,null,null,null,null,null,null,null,null,null,null,null,null,null,null,null,null,null,null,null,null,null,null,null,null,null,null,null,null,null,null,null,null,null,null,null,null,null,null,null,null,null,null,null,null,null,null,null,null,null,null,null,null,null,null,null,null,null,null,null,null,null,null,null,null,956,280]
[null,null,null,null,null,null,null,null,null,null,null,null,null,null,null,null,null,null,null,null,null,null,null,null,null,null,null,null,null,null,null,null,null,null,null,null,null,null,null,null,null,null,null,null,null,null,null,null,null,null,null,null,null,null,null,null,null,null,null,null,null,null,null,null,null,null,null,null,null,null,null,null,null,null,null,null,null,null,null,null,null,null,null,null,null,null,null,null,null,null,null,null,null,null,null,null,null,null,957,280]
[null,null,null,null,null,null,null,null,null,null,null,null,null,null,null,null,null,null,null,null,null,null,null,null,null,null,null,null,null,null,null,null,null,null,null,null,null,null,null,null,null,null,null,null,null,null,null,null,null,null,null,null,null,null,null,null,null,null,null,null,null,null,null,null,null,null,null,null,null,null,null,null,null,null,null,null,null,null,null,null,null,null,null,null,null,null,null,null,null,null,null,null,null,null,null,null,null,null,960,280]
[null,null,null,null,null,null,null,null,null,null,null,null,null,null,null,null,null,null,null,null,null,null,null,null,null,null,null,null,null,null,null,null,null,null,null,null,null,null,null,null,null,null,null,null,null,null,null,null,null,null,null,null,null,null,null,null,null,null,null,null,null,null,null,null,null,null,null,null,null,null,null,null,null,null,null,null,null,null,null,null,null,null,null,null,null,null,null,null,null,null,null,null,null,null,null,null,null,null,961,280]
[null,null,null,null,null,null,null,null,null,null,null,null,null,null,null,null,null,null,null,null,null,null,null,null,null,null,null,null,null,null,null,null,null,null,null,null,null,null,null,null,null,null,null,null,null,null,null,null,null,null,null,null,null,null,null,null,null,null,null,null,null,null,null,null,null,null,null,null,null,null,null,null,null,null,null,null,null,null,null,null,null,null,null,null,null,null,null,null,null,null,null,null,null,null,null,null,null,null,962,280]
[null,null,null,null,null,null,null,null,null,null,null,null,null,null,null,null,null,null,null,null,null,null,null,null,null,null,null,null,null,null,null,null,null,null,null,null,null,null,null,null,null,null,null,null,null,null,null,null,null,null,null,null,null,null,null,null,null,null,null,null,null,null,null,null,null,null,null,null,null,null,null,null,null,null,null,null,null,null,null,null,null,null,null,null,null,null,null,null,null,null,null,null,null,null,null,null,null,null,963,280]
[null,null,null,null,null,null,null,null,null,null,null,null,null,null,null,null,null,null,null,null,null,null,null,null,null,null,null,null,null,null,null,null,null,null,null,null,null,null,null,null,null,null,null,null,null,null,null,null,null,null,null,null,null,null,null,null,null,null,null,null,null,null,null,null,null,null,null,null,null,null,null,null,null,null,null,null,null,null,null,null,null,null,null,null,null,null,null,null,null,null,null,null,null,null,null,null,null,null,964,280]
[null,null,null,null,null,null,null,null,null,null,null,null,null,null,null,null,null,null,null,null,null,null,null,null,null,null,null,null,null,null,null,null,null,null,null,null,null,null,null,null,null,null,null,null,null,null,null,null,null,null,null,null,null,null,null,null,null,null,null,null,null,null,null,null,null,null,null,null,null,null,null,null,null,null,null,null,null,null,null,null,null,null,null,null,null,null,null,null,null,null,null,null,null,null,null,null,null,null,965,280]
[null,null,null,null,null,null,null,null,null,null,null,null,null,null,null,null,null,null,null,null,null,null,null,null,null,null,null,null,null,null,null,null,null,null,null,null,null,null,null,null,null,null,null,null,null,null,null,null,null,null,null,null,null,null,null,null,null,null,null,null,null,null,null,null,null,null,null,null,null,null,null,null,null,null,null,null,null,null,null,null,null,null,null,null,null,null,null,null,null,null,null,null,null,null,null,null,null,null,966,280]
[null,null,null,null,null,null,null,null,null,null,null,null,null,null,null,null,null,null,null,null,null,null,null,null,null,null,null,null,null,null,null,null,null,null,null,null,null,null,null,null,null,null,null,null,null,null,null,null,null,null,null,null,null,null,null,null,null,null,null,null,null,null,null,null,null,null,null,null,null,null,null,null,null,null,null,null,null,null,null,null,null,null,null,null,null,null,null,null,null,null,null,null,null,null,null,null,null,null,967,280]
[null,null,null,null,null,null,null,null,null,null,null,null,null,null,null,null,null,null,null,null,null,null,null,null,null,null,null,null,null,null,null,null,null,null,null,null,null,null,null,null,null,null,null,null,null,null,null,null,null,null,null,null,null,null,null,null,null,null,null,null,null,null,null,null,null,null,null,null,null,null,null,null,null,null,null,null,null,null,null,null,null,null,null,null,null,null,null,null,null,null,null,null,null,null,null,null,null,null,970,280]
[null,null,null,null,null,null,null,null,null,null,null,null,null,null,null,null,null,null,null,null,null,null,null,null,null,null,null,null,null,null,null,null,null,null,null,null,null,null,null,null,null,null,null,null,null,null,null,null,null,null,null,null,null,null,null,null,null,null,null,null,null,null,null,null,null,null,null,null,null,null,null,null,null,null,null,null,null,null,null,null,null,null,null,null,null,null,null,null,null,null,null,null,null,null,null,null,null,null,980,280]
[null,null,null,null,null,null,null,null,null,null,null,null,null,null,null,null,null,null,null,null,null,null,null,null,null,null,null,null,null,null,null,null,null,null,null,null,null,null,null,null,null,null,null,null,null,null,null,null,null,null,null,null,null,null,null,null,null,null,null,null,null,null,null,null,null,null,null,null,null,null,null,null,null,null,null,null,null,null,null,null,null,null,null,null,null,null,null,null,null,null,null,null,null,null,null,null,null,null,981,280]
[null,null,null,null,null,null,null,null,null,null,null,null,null,null,null,null,null,null,null,null,null,null,null,null,null,null,null,null,null,null,null,null,null,null,null,null,null,null,null,null,null,null,null,null,null,null,null,null,null,null,null,null,null,null,null,null,null,null,null,null,null,null,null,null,null,null,null,null,null,null,null,null,null,null,null,null,null,null,null,null,null,null,null,null,null,null,null,null,null,null,null,null,null,null,null,null,null,null,982,280]
[null,null,null,null,null,null,null,null,null,null,null,null,null,null,null,null,null,null,null,null,null,null,null,null,null,null,null,null,null,null,null,null,null,null,null,null,null,null,null,null,null,null,null,null,null,null,null,null,null,null,null,null,null,null,null,null,null,null,null,null,null,null,null,null,null,null,null,null,null,null,null,null,null,null,null,null,null,null,null,null,null,null,null,null,null,null,null,null,null,null,null,null,null,null,null,null,null,null,983,280]
[null,null,null,null,null,null,null,null,null,null,null,null,null,null,null,null,null,null,null,null,null,null,null,null,null,null,null,null,null,null,null,null,null,null,null,null,null,null,null,null,null,null,null,null,null,null,null,null,null,null,null,null,null,null,null,null,null,null,null,null,null,null,null,null,null,null,null,null,null,null,null,null,null,null,null,null,null,null,null,null,null,null,null,null,null,null,null,null,null,null,null,null,null,null,null,null,null,null,984,280]
[null,null,null,null,null,null,null,null,null,null,null,null,null,null,null,null,null,null,null,null,null,null,null,null,null,null,null,null,null,null,null,null,null,null,null,null,null,null,null,null,null,null,null,null,null,null,null,null,null,null,null,null,null,null,null,null,null,null,null,null,null,null,null,null,null,null,null,null,null,null,null,null,null,null,null,null,null,null,null,null,null,null,null,null,null,null,null,null,null,null,null,null,null,null,null,null,null,null,985,280]
[null,null,null,null,null,null,null,null,null,null,null,null,null,null,null,null,null,null,null,null,null,null,null,null,null,null,null,null,null,null,null,null,null,null,null,null,null,null,null,null,null,null,null,null,null,null,null,null,null,null,null,null,null,null,null,null,null,null,null,null,null,null,null,null,null,null,null,null,null,null,null,null,null,null,null,null,null,null,null,null,null,null,null,null,null,null,null,null,null,null,null,null,null,null,null,null,null,null,986,280]
[null,null,null,null,null,null,null,null,null,null,null,null,null,null,null,null,null,null,null,null,null,null,null,null,null,null,null,null,null,null,null,null,null,null,null,null,null,null,null,null,null,null,null,null,null,null,null,null,null,null,null,null,null,null,null,null,null,null,null,null,null,null,null,null,null,null,null,null,null,null,null,null,null,null,null,null,null,null,null,null,null,null,null,null,null,null,null,null,null,null,null,null,null,null,null,null,null,null,987,280]
[null,null,null,null,null,null,null,null,null,null,null,null,null,null,null,null,null,null,null,null,null,null,null,null,null,null,null,null,null,null,null,null,null,null,null,null,null,null,null,null,null,null,null,null,null,null,null,null,null,null,null,null,null,null,null,null,null,null,null,null,null,null,null,null,null,null,null,null,null,null,null,null,null,null,null,null,null,null,null,null,null,null,null,null,null,null,null,null,null,null,null,null,null,null,null,null,null,null,990,280]
[null,null,null,null,null,null,null,null,null,null,null,null,null,null,null,null,null,null,null,null,null,null,null,null,null,null,null,null,null,null,null,null,null,null,null,null,null,null,null,null,null,null,null,null,null,null,null,null,null,null,null,null,null,null,null,null,null,null,null,null,null,null,null,null,null,null,null,null,null,null,null,null,null,null,null,null,null,null,null,null,null,null,null,null,null,null,null,null,null,null,null,null,null,null,null,null,null,null,995,0]

{"sheet":"Carte - Admissibilité - Caribou","index":2,"n_rows":0,"n_cols":0,"rows_kept":0,"cut":false,"hidden":true,"merged":[]}

{"sheet":"Versions du fichier","index":3,"n_rows":10,"n_cols":33,"rows_kept":10,"cut":false,"hidden":true,"merged":[[0,0,0,16],[0,19,0,24]]}
["Programme d’investissement en aménagement forestier (PIAF) - Volet II\nForêt publique\nSuivi des versions du fichier de l'annexe au rapport et au calcul de l'aide pour la récolte des bois découlant de l’application des modalités\nd’aménagement de l’habitat du caribou forestier et montagnard pour l'exercice 2021-2022",null,null,null,null,null,null,null,null,null,null,null,null,null,null,null,null,null,null,"Version 2 : 2021-06-09",null,null,null,null,null,null,null,null,null,null,null,null,{"$f":"TODAY()","v":"2021-06-09"}]
[]
["Version 1","Nom du fichier :","Calcul_aide_PIAF_Volet_II_ Caribou_2021-2022_2021-04-08.xlsm"]
[{"$f":"A3","v":"Version 1"},"Date de mise en ligne :","2021-04-08 ou dans les jours suivants."]
[{"$f":"A4","v":"Version 1"},"Remarques :","• Version initiale proposée pour la période de consultation"]
[{"$f":"A5","v":"Version 1"}]
["Version 2","Nom du fichier :","Calcul_aide_PIAF_Volet_II_ Caribou_2021-2022_2021-06-09.xlsm"]
[{"$f":"A7","v":"Version 2"},"Date de mise en ligne :","2021-06-09 ou dans les jours suivants."]
[{"$f":"A8","v":"Version 2"},"Remarques :","• Version officielle"]
[{"$f":"A9","v":"Version 2"}]

{"sheet":"Menus","index":4,"n_rows":301,"n_cols":4,"rows_kept":301,"cut":false,"hidden":true,"merged":[]}
["Question (pondération via RechercheV du bloc Question)"]
["Oui",1]
["Non",0]
["Non admissible"]
["Sans objet"]
[]
["Tableau_ZT_Facteur"]
["ZT","Facteur ARRONDI3 (Calcul)","Facteur brut (Référence)"]
[154,{"$f":"ROUND(C9,3)","v":0.57099999999999995},0.57133685416779278]
[155,{"$f":"ROUND(C10,3)","v":0.52400000000000002},0.52409915791409578]
[156,0.57599999999999996,0.57593778687471053]
[157,0.49299999999999999,0.49280643096564364]
[158,0.434,0.43395320151047301]
[180,0.67900000000000005,0.67946073789245343]
[181,0.85299999999999998,0.85346670445166795]
[182,0.47399999999999998,0.47397054525637716]
[183,0.74399999999999999,0.74354471828335778]
[184,0.93100000000000005,0.93053413900980853]
[185,0.84299999999999997,0.84254802756042602]
[186,0.81699999999999995,0.8167974639720994]
[187,0.999,0.99890499900303786]
[193,1.0349999999999999,1.0349999999999999]
[194,0.90700000000000003,0.90700000000000003]
[195,0.77400000000000002,0.77400000000000002]
[200,1.081,1.0806904780151347]
[240,0.69599999999999995,0.69599999999999995]
[241,0.80300000000000005,0.80289800325202865]
[242,0.79100000000000004,0.79057799414527485]
[243,0.88600000000000001,0.88582382667728943]
[244,0.90100000000000002,0.90137094784480754]
[245,1,0.99983777322776501]
[246,1.028,1.0281726167643626]
[247,1.089,1.089178750697757]
[248,0.871,0.87094088023212979]
[249,0.871,0.87094088023212979]
[251,0.871,0.87094088023212979]
[252,1.1910000000000001,1.1913991723512476]
[253,1.2869999999999999,1.2869189431679156]
[254,1.3149999999999999,1.3147160424853441]
[255,1.018,1.018479158244997]
[256,1.046,1.0462162262899251]
[257,1.103,1.1029811010714496]
[258,1.1160000000000001,1.11598108871346]
[259,1.204,1.2036808410430779]
[260,1.278,1.2783814680583567]
[261,1.04,1.0399176854795109]
[262,1.1080000000000001,1.1083687087797214]
[263,1.1499999999999999,1.1497936863664278]
[264,1.19,1.190464127240759]
[265,1.258,1.2579240043821738]
[267,1.161,1.1614808298785797]
[268,1.23,1.2301207029388013]
[269,1.319,1.3193594116636238]
[270,1.262,1.2619991659579741]
[271,1.452,1.4523819787367278]
[272,1.329,1.3291226523914654]
[274,1.34,1.3402854675130271]
[275,1.31,1.309872679620224]
[276,1.482,1.4822245524568933]
[277,1.5920000000000001,1.5919368603352859]
[278,1.5860000000000001,1.5864444134820552]
[279,1.6,1.5996595352948271]
[280,1.5649999999999999,1.5645575421913702]
[281,1.4390000000000001,1.4389007625044663]
[282,1.631,1.6308047047121423]
[283,1.67,1.6697524138979398]
[284,1.661,1.6614981305122754]
[285,1.635,1.635328508842153]
[286,1.583,1.5834977071634777]
[287,1.542,1.5424995486076092]
[288,1.4279999999999999,1.42785265354641]
[289,1.3839999999999999,1.3841091255999842]
[290,1.5489999999999999,1.5489999999999999]
[299,{"$f":"ROUND(C74,3)","v":1.081},1.0806904780151347]
[352,0.67300000000000004,0.67257111324399999]
[353,0.69,0.69022566374100003]
[354,0.80400000000000005,0.80353644840799998]
[355,0.79700000000000004,0.79719238664688241]
[356,1.05,1.0503892862380018]
[357,1.095,1.0954455422317142]
[860,1,1]
[861,0.92800000000000005,0.92800310189868895]
[862,1.1140000000000001,1.1139793207778292]
[877,1.256,1.2557329790184579]
[878,1.2829999999999999,1.2832406513195995]
[879,1.7050000000000001,1.7053936437107651]
[880,1.345,1.3449948876742825]
[881,1.24,1.2402093562799825]
[882,1.198,1.1976909803725357]
[883,1.2290000000000001,1.2290292780217702]
[884,1.2809999999999999,1.2814949186987565]
[885,1.3089999999999999,1.3094134735520404]
[886,1.012,1.012474969668532]
[887,0.98599999999999999,0.98647584012895706]
[889,0.66100000000000003,0.66090454191519821]
[890,0.65500000000000003,0.65481984178403874]
[891,0.78500000000000003,0.78549289761737984]
[892,0.85099999999999998,0.85113812225714613]
[931,2.1389999999999998,2.138969857596996]
[932,2.1819999999999999,2.1819421163575798]
[933,2.3279999999999998,2.3283687047531401]
[934,1.2889999999999999,1.2885798028460351]
[935,1.2889999999999999,1.2885798028460351]
[951,1.274,1.2737351470661253]
[952,1.1739999999999999,1.173899359921778]
[953,1.2829999999999999,1.2826944662391866]
[954,1.268,1.2683266610782735]
[955,1.5680000000000001,1.5680795205660409]
[956,1.492,1.492030810068953]
[957,1.2090000000000001,1.2090870385459567]
[960,1.792,1.7923750770902025]
[961,1.7849999999999999,1.7850142646713363]
[962,1.8,1.800231661587159]
[963,1.837,1.8370341316919414]
[964,1.8939999999999999,1.8940654823071172]
[965,1.9139999999999999,1.9143483080466401]
[966,1.909,1.9092034621610598]
[967,1.8979999999999999,1.8975604797756118]
[970,2.048,2.0477864838908557]
[980,2.016,2.016]
[984,2.3239999999999998,2.3239158270740918]
[985,2.4159999999999999,2.4158879155181952]
[986,2.2789999999999999,2.2790025516415682]
[987,1.9370000000000001,1.9367809995867999]
["Inscrire une valeur"]
[]
["Facteur_Aide"]
["Facteur",0.41419099850172919]
[]
["Formule - Aide maximale SEPM"]
["Constante",59.573639905314288]
["Variable X 1",-0.92435121918628294]
[]
["Formule - Aide maximale FD-PEU"]
["Constante",9.1922625988012623]
["Variable X 1",-2.520767269157002E-2]
[]
["Formule  - FD Pâte non récoltés"]
["Constante",6.1700627330050772E-3]
["Variable X 1",0.97991935639326988]
[]
["Formule  - PEU Pâte non récoltés"]
["Constante",-8.9306492317347663E-2]
["Variable X 1",0.99960196608627194]
[]
["Formule - FD et PEU Pâte non récoltés"]
["Constante",-2.7453539912521308E-2]
["Variable X 1",0.85903200716200645]
[]
["Question - Dynamique (pas utilisé dans les formules de l'onglet « Calcul de l'aide - Caribou »"]
["Question/Contexte","Planification","BGAD","Ministère"]
[{"$f":"'Calcul de l''aide - Caribou'!A15:F15","v":"Peuplement résineux ou mixte ET surface terrière SEPM > 25% ?"},{"$f":"IFERROR(VLOOKUP('Calcul de l''aide - Caribou'!$G$15,Menus!$A$2:$B$3,2,FALSE),0)","v":0},{"$f":"IFERROR(VLOOKUP('Calcul de l''aide - Caribou'!$H$15,Menus!$A$2:$B$3,2,FALSE),0)","v":0},{"$f":"IFERROR(VLOOKUP('Calcul de l''aide - Caribou'!$I$15,Menus!$A$2:$B$3,2,FALSE),0)","v":0}]
[{"$f":"'Calcul de l''aide - Caribou'!A10:E10&\" - Facteur\"","v":"Zone de tarification\nValeur requise pour déterminer l'admissibilité et établir le montant de l'aide - Facteur"},{"$f":"IFERROR(VLOOKUP('Calcul de l''aide - Caribou'!$I$10,Tableau_ZT_Facteur,2,FALSE),0)","v":0},{"$f":"IFERROR(VLOOKUP('Calcul de l''aide - Caribou'!$I$10,Tableau_ZT_Facteur,2,FALSE),0)","v":0},{"$f":"IFERROR(VLOOKUP('Calcul de l''aide - Caribou'!$I$10,Tableau_ZT_Facteur,2,FALSE),0)","v":0}]
[{"$f":"'Calcul de l''aide - Caribou'!A25:F25","v":"Est-ce que tout le volume des feuillus durs est récolté ?"},{"$f":"IFERROR(VLOOKUP('Calcul de l''aide - Caribou'!$G$25,Menus!$A$2:$B$3,2,FALSE),0)","v":0},{"$f":"IFERROR(VLOOKUP('Calcul de l''aide - Caribou'!$H$25,Menus!$A$2:$B$3,2,FALSE),0)","v":0},{"$f":"IFERROR(VLOOKUP('Calcul de l''aide - Caribou'!$I$25,Menus!$A$2:$B$3,2,FALSE),0)","v":0}]
[{"$f":"'Calcul de l''aide - Caribou'!A26:F26","v":"Est-ce que tout le volume des peupliers est récolté ?"},{"$f":"IFERROR(VLOOKUP('Calcul de l''aide - Caribou'!$G$26,Menus!$A$2:$B$3,2,FALSE),0)","v":0},{"$f":"IFERROR(VLOOKUP('Calcul de l''aide - Caribou'!$H$26,Menus!$A$2:$B$3,2,FALSE),0)","v":0},{"$f":"IFERROR(VLOOKUP('Calcul de l''aide - Caribou'!$I$26,Menus!$A$2:$B$3,2,FALSE),0)","v":0}]
[]
["Résultats bruts - Dynamique (les résultats sont modulés Tableau_ZT_Facteur et Facteur_Aide dans les formules de l'onglet « Calcul de l'aide - Caribou »"]
["Question/Contexte","Planification","BGAD","Ministère"]
["Aide maximale ($/ha) - OUI/OUI",{"$f":"IF((('Calcul de l''aide - Caribou'!$G$19*$B$132)+$B$131)*'Calcul de l''aide - Caribou'!$G$19+((SUM('Calcul de l''aide - Caribou'!$G$21:$G$22)*$B$136)+$B$135)*SUM('Calcul de l''aide - Caribou'!$G$21:$G$22)<0,0,(('Calcul de l''aide - Caribou'!$G$19*$B$132)+$B$131)*'Calcul de l''aide - Caribou'!$G$19+((SUM('Calcul de l''aide - Caribou'!$G$21:$G$22)*$B$136)+$B$135)*SUM('Calcul de l''aide - Caribou'!$G$21:$G$22))","v":0},{"$f":"IF((('Calcul de l''aide - Caribou'!$H$19*$B$132)+$B$131)*'Calcul de l''aide - Caribou'!$H$19+((SUM('Calcul de l''aide - Caribou'!$H$21:$H$22)*$B$136)+$B$135)*SUM('Calcul de l''aide - Caribou'!$H$21:$H$22)<0,0,(('Calcul de l''aide - Caribou'!$H$19*$B$132)+$B$131)*'Calcul de l''aide - Caribou'!$H$19+((SUM('Calcul de l''aide - Caribou'!$H$21:$H$22)*$B$136)+$B$135)*SUM('Calcul de l''aide - Caribou'!$H$21:$H$22))","v":0},{"$f":"IF((('Calcul de l''aide - Caribou'!$I$19*$B$132)+$B$131)*'Calcul de l''aide - Caribou'!$I$19+((SUM('Calcul de l''aide - Caribou'!$I$21:$I$22)*$B$136)+$B$135)*SUM('Calcul de l''aide - Caribou'!$I$21:$I$22)<0,0,(('Calcul de l''aide - Caribou'!$I$19*$B$132)+$B$131)*'Calcul de l''aide - Caribou'!$I$19+((SUM('Calcul de l''aide - Caribou'!$I$21:$I$22)*$B$136)+$B$135)*SUM('Calcul de l''aide - Caribou'!$I$21:$I$22))","v":0}]
["Aide si FD pâte non récoltée - NON ou SO/OUI",{"$f":"IF('Calcul de l''aide - Caribou'!$G$21=0,Menus!$B$159,IF(IF($B$159<0,0,(1-(('Calcul de l''aide - Caribou'!$G$21/'Calcul de l''aide - Caribou'!$G$23)*$B$140+$B$139))*$B$159)<0,0,IF($B$159<0,0,(1-(('Calcul de l''aide - Caribou'!$G$21/'Calcul de l''aide - Caribou'!$G$23)*$B$140+$B$139))*$B$159)))","v":0},{"$f":"IF('Calcul de l''aide - Caribou'!$H$21=0,Menus!$C$159,IF(IF($C$159<0,0,(1-(('Calcul de l''aide - Caribou'!$H$21/'Calcul de l''aide - Caribou'!$H$23)*$B$140+$B$139))*$C$159)<0,0,IF($C$159<0,0,(1-(('Calcul de l''aide - Caribou'!$H$21/'Calcul de l''aide - Caribou'!$H$23)*$B$140+$B$139))*$C$159)))","v":0},{"$f":"IF('Calcul de l''aide - Caribou'!$I$21=0,Menus!$D$159,IF(IF($D$159<0,0,(1-(('Calcul de l''aide - Caribou'!$I$21/'Calcul de l''aide - Caribou'!$I$23)*$B$140+$B$139))*$D$159)<0,0,IF($D$159<0,0,(1-(('Calcul de l''aide - Caribou'!$I$21/'Calcul de l''aide - Caribou'!$I$23)*$B$140+$B$139))*$D$159)))","v":0}]
["Aide si PEU pâte non récoltée - OUI/NON ou SO",{"$f":"IF(IF('Calcul de l''aide - Caribou'!$G$22=0,$B$159,(1-(('Calcul de l''aide - Caribou'!$G$22/'Calcul de l''aide - Caribou'!$G$23)*$B$144+$B$143))*$B$159)>$B$159,$B$159,IF('Calcul de l''aide - Caribou'!$G$22=0,$B$159,(1-(('Calcul de l''aide - Caribou'!$G$22/'Calcul de l''aide - Caribou'!$G$23)*$B$144+$B$143))*$B$159))","v":0},{"$f":"IF(IF('Calcul de l''aide - Caribou'!$H$22=0,$C$159,(1-(('Calcul de l''aide - Caribou'!$H$22/'Calcul de l''aide - Caribou'!$H$23)*$B$144+$B$143))*$C$159)>$C$159,$C$159,IF('Calcul de l''aide - Caribou'!$H$22=0,$C$159,(1-(('Calcul de l''aide - Caribou'!$H$22/'Calcul de l''aide - Caribou'!$H$23)*$B$144+$B$143))*$C$159))","v":0},{"$f":"IF(IF('Calcul de l''aide - Caribou'!$I$22=0,$D$159,(1-(('Calcul de l''aide - Caribou'!$I$22/'Calcul de l''aide - Caribou'!$I$23)*$B$144+$B$143))*$D$159)>$D$159,$D$159,IF('Calcul de l''aide - Caribou'!$I$22=0,$D$159,(1-(('Calcul de l''aide - Caribou'!$I$22/'Calcul de l''aide - Caribou'!$I$23)*$B$144+$B$143))*$D$159))","v":0}]
["Aide si PEU pâte et FD pâte non récoltées - NON ou SO/NON ou SO",{"$f":"IF(SUM('Calcul de l''aide - Caribou'!$G$21:$G$22)=0,$B$159,IF(IF($B$159<0,0,(1-((('Calcul de l''aide - Caribou'!$G$22+'Calcul de l''aide - Caribou'!$G$21)/'Calcul de l''aide - Caribou'!$G$23)*$B$148+$B$147))*$B$159)>$B$160,$B$160,IF($B$159<0,0,(1-((('Calcul de l''aide - Caribou'!$G$22+'Calcul de l''aide - Caribou'!$G$21)/'Calcul de l''aide - Caribou'!$G$23)*$B$148+$B$147))*$B$159)))","v":0},{"$f":"IF(SUM('Calcul de l''aide - Caribou'!$H$21:$H$22)=0,$C$159,IF(IF($C$159<0,0,(1-((('Calcul de l''aide - Caribou'!$H$22+'Calcul de l''aide - Caribou'!$H$21)/'Calcul de l''aide - Caribou'!$H$23)*$B$148+$B$147))*$C$159)>$C$160,$C$160,IF($C$159<0,0,(1-((('Calcul de l''aide - Caribou'!$H$22+'Calcul de l''aide - Caribou'!$H$21)/'Calcul de l''aide - Caribou'!$H$23)*$B$148+$B$147))*$C$159)))","v":0},{"$f":"IF(SUM('Calcul de l''aide - Caribou'!$I$21:$I$22)=0,$D$159,IF(IF($D$159<0,0,(1-((('Calcul de l''aide - Caribou'!$I$22+'Calcul de l''aide - Caribou'!$I$21)/'Calcul de l''aide - Caribou'!$I$23)*$B$148+$B$147))*$D$159)>$D$160,$D$160,IF($D$159<0,0,(1-((('Calcul de l''aide - Caribou'!$I$22+'Calcul de l''aide - Caribou'!$I$21)/'Calcul de l''aide - Caribou'!$I$23)*$B$148+$B$147))*$D$159)))","v":0}]
[]
["UA - Mesure intérimaire (sauf 03171-08764 fragments UA, les ZT ne sont pas admissibles)"]
["01272"]
["02371"]
["02471"]
["02571"]
["02661"]
["02662"]
["02663"]
["02664"]
["02665"]
["02751"]
["03153"]
["03171"]
["03351"]
["08351"]
["08551"]
["08562"]
["08652"]
["08663"]
["08664"]
["08665"]
["08666"]
["09351"]
["09352"]
["09471"]
["09751"]
["11161"]
["11263"]
[]
["Contexte"]
["Planification"]
["BGAD"]
["Ministère"]
["Inscrire une valeur"]
[]
["Codes_Dica"]
["CPHRS-BOUQ"]
["CPHRS-ILOT"]
["CPHRS-SLEG"]
["CPHRS-TIGE"]
["CPPTM_DIS"]
["CPPTM_DIS-BOUQ"]
["CPPTM_DIS-ILOT"]
["CPPTM_U"]
["CPRS_BA"]
["CPRS_DA"]
["CPRS_PA"]
["CPRS_T"]
["CPRS_U-BOUQ"]
["CPRS_U-ILOT"]
["CPRS_U-SLEG"]
["CPRS_U-TIGE"]
["CRS-BOUQ"]
["CRS-ILOT"]
["CRS-SLEG"]
["CRS-TIGE"]
["CS-BOUQ"]
["CS-ILOT"]
["CS-SLEG"]
["CS-TIGE"]
["CTSP_BA"]
["CTSP_DA"]
["CTSP_PA"]
["CTSP_T"]
["CTSP_U-BOUQ"]
["CTSP_U-ILOT"]
["CTSP_U-SLEG"]
["CTSP_U-TIGE"]
["Inscrire une valeur"]
[]
["Codes_RATF"]
["CPHRSBOUQ"]
["CPHRSILOT"]
["CPHRSSLEG"]
["CPHRSTIGE"]
["CPPTMBOUQ"]
["CPPTMDIS"]
["CPPTMILOT"]
["CPPTMU"]
["CPRSBA"]
["CPRSBOUQ"]
["CPRSDA"]
["CPRSILOT"]
["CPRSPA"]
["CPRSSLEG"]
["CPRST"]
["CPRSTIGE"]
["CRSBOUQ"]
["CRSILOT"]
["CRSSLEG"]
["CRSTIGE"]
["CSBOUQ"]
["CSILOT"]
["CSSLEG"]
["CSTIGE"]
["CTSPBA"]
["CTSPBOUQ"]
["CTSPDA"]
["CTSPILOT"]
["CTSPPA"]
["CTSPSLEG"]
["CTSPT"]
["CTSPTIGE"]
[]
["Codes_Dica (fonction INDIRECT pour RATF)","Code_RATF","Indirect"]
["CPHRS-BOUQ","CPHRSBOUQ","RATF_CPHRSBOUQ","Coupe avec protection de la haute régénération et des sols legs par bouquets"]
["CPHRS-ILOT","CPHRSILOT","RATF_CPHRSILOT","Coupe avec protection de la haute régénération et des sols legs par îlots"]
["CPHRS-SLEG","CPHRSSLEG","RATF_CPHRSSLEG","Coupe avec protection de la haute régénération et des sols sans legs biologiques"]
["CPHRS-TIGE","CPHRSTIGE","RATF_CPHRSTIGE","Coupe avec protection de la haute régénération et des sols legs par arbres individuels"]
["CPPTM_DIS","CPPTMDIS","RATF_CPPTMDIS","Coupe avec protection des petites tiges marchandes discontinue, sans legs biologiques"]
["CPPTM_DIS-BOUQ","CPPTMBOUQ","RATF_CPPTMBOUQ","Coupe avec protection des petites tiges marchandes discontinue, legs par bouquets "]
["CPPTM_DIS-ILOT","CPPTMILOT","RATF_CPPTMILOT","Coupe avec protection des petites tiges marchandes discontinue, legs par îlots"]
["CPPTM_U","CPPTMU","RATF_CPPTMU","Coupe avec protection des petites tiges marchandes uniforme"]
["CPRS_BA","CPRSBA","RATF_CPRSBA","Coupe avec protection de la régénération et des sols par bandes"]
["CPRS_DA","CPRSDA","RATF_CPRSDA","Coupe avec protection de la régénération et des sols en damiers"]
["CPRS_PA","CPRSPA","RATF_CPRSPA","Coupe avec protection de la régénération et des sols par parquets"]
["CPRS_T","CPRST","RATF_CPRST","Coupe avec protection de la régénération et des sols par trouées"]
["CPRS_U-BOUQ","CPRSBOUQ","RATF_CPRSBOUQ","Coupe avec protection de la régénération et des sols uniforme legs par bouquets"]
["CPRS_U-ILOT","CPRSILOT","RATF_CPRSILOT","Coupe avec protection de la régénération et des sols uniforme legs par îlots"]
["CPRS_U-SLEG","CPRSSLEG","RATF_CPRSSLEG","Coupe avec protection de la régénération et des sols uniforme sans legs biologiques"]
["CPRS_U-TIGE","CPRSTIGE","RATF_CPRSTIGE","Coupe avec protection de la régénération et des sols uniforme legs par arbres individuels"]
["CRS-BOUQ","CRSBOUQ","RATF_CRSBOUQ","Coupe avec réserve de semenciers legs par bouquets"]
["CRS-ILOT","CRSILOT","RATF_CRSILOT","Coupe avec réserve de semenciers legs par îlots"]
["CRS-SLEG","CRSSLEG","RATF_CRSSLEG","Coupe avec réserve de semenciers sans legs biologiques"]
["CRS-TIGE","CRSTIGE","RATF_CRSTIGE","Coupe avec réserve de semenciers legs par arbres individuels"]
["CS-BOUQ","CSBOUQ","RATF_CSBOUQ","Coupe de succession legs par bouquets"]
["CS-ILOT","CSILOT","RATF_CSILOT","Coupe de succession legs par îlots"]
["CS-SLEG","CSSLEG","RATF_CSSLEG","Coupe de succession sans legs biologiques"]
["CS-TIGE","CSTIGE","RATF_CSTIGE","Coupe de succession legs par arbres individuels"]
["CTSP_BA","CTSPBA","RATF_CTSPBA","Coupe totale sans protection par bandes"]
["CTSP_DA","CTSPDA","RATF_CTSPDA","Coupe totale sans protection en damiers"]
["CTSP_PA","CTSPPA","RATF_CTSPPA","Coupe totale sans protection par parquets"]
["CTSP_T","CTSPT","RATF_CTSPT","Coupe totale sans protection par trouées"]
["CTSP_U-BOUQ","CTSPBOUQ","RATF_CTSPBOUQ","Coupe totale sans protection uniforme legs par bouquets"]
["CTSP_U-ILOT","CTSPILOT","RATF_CTSPILOT","Coupe totale sans protection uniforme legs par îlots"]
["CTSP_U-SLEG","CTSPSLEG","RATF_CTSPSLEG","Coupe totale sans protection uniforme sans legs biologiques"]
["CTSP_U-TIGE","CTSPTIGE","RATF_CTSPTIGE","Coupe totale sans protection uniforme legs par arbres individuels"]
["Inscrire une valeur",null,"RATF_Inscrire_une_valeur"]

{"sheet":"Log","index":5,"n_rows":2,"n_cols":4,"rows_kept":2,"cut":false,"hidden":true,"merged":[]}
["Utilisateur","Date","OS","Excel"]
["Pouliot, Simon (BMMB)","2021-06-09T11:04:08","Windows (32-bit) NT 6.01","15.0"]